Workbook

Sheet Cover Page
D1: Add company logo
K2: Template version 25.1a (for incinerators) - 27/11/25
K4: Note that there is another version of this template available for co-incinerators
B8: Add photo
K13: Notes:
K14: This template may require adjustments by individual operators to meet specific reporting requirements as defined in the site Permit(s)
B29: Annual Performance Report 2025
B31: Permit EPR/WP3438HZ
B33: Suffolk EfW
B37: SUEZ Recycling and Recovery Suffolk Ltd
B39: Year: | C39: 2025
B41: Address: | C41: Lodge Lane, Great Blakenham, Suffolk, IP6 0JE
B43: Tel: | C43: 01473 839149
B45: Email: | C45: john.flounders@suez.com
B47: Prepared by: | C47: Robert Taylor Richard Watkins | F47: Position: | G47: Snr. Technical Plant Eng. EIR Manager
B49: Approved by: | C49: John Flounders | F49: Position: | G49: Plant Manager
B51: Version: | C51: 1
B53: Issue Date: | C53: 2026-01-28

Sheet Facility Info
A1: =+'Cover Page'!$B$29 -> Annual Performance Report 2025 | E1: =+'Cover Page'!$B$33 -> Suffolk EfW
A3: Plant Description and Design | K3: Notes:
A5: This non-hazardous waste incinerator operates 24/7 across two furnace lines and can receive up to 295,000 tonnes of municipal waste and commercial/Industrial waste per annum. The heat produced by waste incineration is used to raise superheated steam which generates approximately 185,000 MWh/annum of electricity. Activities associated with the incineration are receipt and storage of municipal waste and commercial/industrial waste, production of steam and electricity, abatement of flue gas and handling of Incinerator Bottom Ash (IBA) and Air Pollution Control Residue (APCR). Suffolk EfW commissioning finished on 1st December 2014, when the plant was handed over from the EPC contractor to SUEZ UK. Permit conditions have applied since this date. The data included in this report corresponds to the following period; 01 January 2025 to 31 December 2025. | K5: Include summary of plant design, design capacity, no. of combustion lines, electrical and heat capacity and any other general information that describes the facility, its location and purpose
A20: Summary of Operational Processes and Procedures
A22: RECEPTION HALL & BUNKER Incoming waste is delivered to site by refuse collection trucks. It is then checked in, weighed and delivered into the reception hall. A large reception hall allows for refuse collection trucks to manoeuvre and tip waste safely. Air needed for combustion is drawn into the furnace from here so that negative pressure is maintained in order to avoid odour and dust escaping the building. Waste vehicles reverse to a wheel stop and tip their loads into a large concrete bunker. Mixing of waste occurs as the cranes driver sorts the waste looking for unsuitable material to be removed, and to improve the homogeneity of the incinerator feedstock. CONTROL ROOM The plant’s control room centralises the operation of all equipment, including the grab cranes used to mix and load waste into a hopper that feeds the furnace. All on-site functions are monitored automatically and manually. Its systems verify in real time that equipment is functioning properly, continuously monitor the combustion gas, and maximise the efficiency of the entire EfW process. GRATE AND BOILER Waste is lifted into the charging hoppers by the crane. From here it falls into the furnace-charging chute and then is introduced onto the grate system by hydraulic feeders for incineration. An auxiliary burner can be used to help keeping the temperature above 850°C if required. The thermal energy released from the burning is used to convert water to super-heated steam along a boiler composed of 6 vertical passes. At high pressure, this steam drives a turbine to generate electricity. ELECTRICITY GENERATION Electricity is generated at 11kv, with an electric production of 209,924 MWh during 2025 and exporting 186,480 MWh/annum to the national grid. INCINERATOR BOTTOM ASH (IBA) Ash left on the grate after incineration is carried by conveyor, after quenching, to the IBA processing facility. Up to 65,000 tonne of IBA is processed on site by the removal of ferrous and non-ferrous metal, stabilised and separated into fraction sizes of IBA prior to the export from site of the processed IBA and metals for re-use. EMISSION CONTROL & AIR POLLUTION CONTROL RESIDUE (APCR) The gases from the furnace are subject to a rigorous cleaning process involving urea as selective non-catalytic reduction (SNCR), lime and active carbon injections. This removes oxides of nitrogen, acidic gases, dioxins, and heavy metals from the gas stream. The cleaned gas passes through fine-fabric bag filters to remove solid particles before it is emitted through the stack. The resultant APCR residue, or fly-ash, contains particles from the incineration process, lime used in the flue gas treatment, salts and carbon dust. It is stored in a sealed silo until it is tankered away for recycling. EMISSIONS MONITORING As they pass through the stack, the residual flue gases from the process are continuously monitored before release. This data is relayed automatically to the control room. | K22: Include summary of key processes and procedures such as (but not limited to); waste reception, control rooms, grate, bed and boiler, energy & heat generation, cooling systems, residue management, emission controls, health and safety systems, maintenance

Sheet Operational Data
A1: =+'Cover Page'!$B$29 -> Annual Performance Report 2025 | E1: =+'Cover Page'!$B$33 -> Suffolk EfW
A3: Operational Data
A4: Plant Size: | B4: 295000 | D4: tonnes pa | J4: Notes:
A5: Nominal net thermal input: | B5: 89 | C5: MWth | J5: * Export capacity = nominal generation capacity at the generator terminals minus nominal parasitic load. ** CHP and district heating plants only - put N/A if no heat export. *** Combusted tonnage = tonnes delivered in period + (tonnes in bunker at start of period – tonnes in bunker at end of period), or equivalent calculation depending on plant type **** Availability Definition: The availability of a line is to be calculated by the number of hours the line reported Continuously Monitored emission levels to the Regulator through the calendar year divided by the total number of hours in that year. The overall plant availability is calculated as the mean of all lines in the plant. For clarity this includes periods of abnormal operation. Rationale: The primary function of an Energy from Waste facility is the disposal of waste. It follows therefore that the availability of a plant is determined by the period of time a facility spends undertaking this activity. *****NCV of waste: This should be completed for all plants which have a boiler. Calculate using total thermal power produced by boiler/boiler efficiency, or other suitable calculation.
A6: Nominal electrical export capacity*: | B6: 25.2 | C6: MWe
A7: Nominal heat export capacity**: | B7: N/A | C7: MWth
A8: No. of combustion lines: | B8: 2 | C8: No. of steam turbines: | E8: 1
A10: Waste types received | B10: Unit | C10: Q1 | D10: Q2 | E10: Q3 | F10: Q4 | G10: Year Total | H10: %
A11: Household / Local Authority | B11: tonnes | C11: 68681 | D11: 48105 | E11: 71383 | F11: 74184 | G11: =SUM(C11:F11) -> 262353 | H11: =IF(G11>0,G11/$G$21,"-") -> 0.9140041179
A12: Commercial & Industrial | C12: 5059 | D12: 1805 | E12: 3329 | F12: 6298 | G12: =SUM(C12:F12) -> 16491 | H12: 0.05745252354
A13: Hazardous | C13: - | D13: - | E13: - | F13: - | G13: 0 | H13: -
A14: Clinical | C14: 2184 | D14: 259 | E14: 2388 | F14: 3362 | G14: 8193 | H14: 0.02854335852
A15: Waste wood (biomass) | G15: 0 | H15: -
A16: Refuse Derived Fuel (incl. SRF) - H'hold/LA | G16: =SUM(C16:F16) -> 0 | H16: -
A17: Refuse Derived Fuel (incl. SRF) - C&I | G17: 0 | H17: -
A18: Other [Please specify] | G18: 0 | H18: -
A19: Other [Please specify] | G19: 0 | H19: -
A20: Other [Please specify] | G20: 0 | H20: -
A21: Total waste received | C21: =SUM(C11:C20) -> 75924 | D21: =SUM(D11:D20) -> 50169 | E21: =SUM(E11:E20) -> 77100 | F21: =SUM(F11:F20) -> 83844 | G21: 287037
A22: Rejected Waste | G22: =SUM(C22:F22) -> 0 | H22: =IF(G22>0,G22/$G$21,"-") -> -
A23: Unprocessed waste transferred out | G23: =SUM(C23:F23) -> 0 | H23: =IF(G23>0,G23/$G$21,"-") -> -
A24: Total waste combusted *** | C24: =C21+2898-2974 -> 75848 | D24: =D21+2974-1592 -> 51551 | E24: =E21+1592-964 -> 77728 | F24: =F21+964-3369 -> 81439 | G24: =SUM(C24:F24) -> 286566 | H24: 0.9984
A26: Energy Usage / Export | B26: Unit | C26: Q1 | D26: Q2 | E26: Q3 | F26: Q4 | G26: Year Total | H26: KWh/te | J26: Password for protected cells A password has been set to prevent accidental editing of cells with formulae. If you still need to make an edit for some reason then the password = 1234
A27: Power generated at generator terminals | B27: MWh | C27: 56721.23472 | D27: 35922.79166 | E27: 58652.13168 | F27: 58628.32848 | G27: =SUM(C27:F27) -> 209924.4865 | H27: =IF(G27>0,G27*1000/$G$24,"-") -> 732.5519655
A28: Power exported to grid and other external user(s) | C28: 50618.1689 | D28: 31444.8236 | E28: 52101.7825 | F28: 52167.2488 | G28: =SUM(C28:F28) -> 186332.0238 | H28: =IF(G28>0,G28*1000/$G$24,"-") -> 650.2237663
A29: Power imported | D29: 191.659 | G29: 191.659 | H29: =IF(G29>0,G29*1000/$G$24,"-") -> 0.6688127691
A30: Indicative parasitic load | B30: % | C30: =IF(C27>0,(C27-C28)/C27,"-") -> 0.1075975488 | D30: =IF(D27>0,(D27-D28)/D27,"-") -> 0.124655347 | E30: 0.1116813489 | F30: 0.1102040574 | G30: =IF(G27>0,1-G28/(G27+G29),"-") -> 0.1131951173
A31: Thermal Energy Exported ** | G31: =SUM(C31:F31) -> 0 | H31: =IF(G31>0,G31*1000/$G$24,"-") -> -
A32: R1 value (if applicable) | B32: R1 | C32: - | D32: - | E32: - | F32: -
A34: Waste Disposal & Recovery | B34: Unit | C34: Q1 | D34: Q2 | E34: Q3 | F34: Q4 | G34: Year Total | H34: % inputs
A35: APC Residues - produced | B35: tonnes | C35: 1957.02 | D35: 1112.74 | E35: 1714.18 | F35: 1756.14 | G35: =SUM(C35:F35) -> 6540.08 | H35: =IF(G35>0,G35/$G$24,"-") -> 0.02282224688
A36: IBA - produced | C36: 11990.58 | D36: 11856.56 | E36: 12420.34 | F36: 11836.74 | G36: 48104.22 | H36: =IF(G36>0,G36/$G$24,"-") -> 0.1678643663
A37: Metals recycling | C37: 2494.14 | D37: 1973.88 | E37: 2455.46 | F37: 2380.06 | G37: =SUM(C37:F37) -> 9303.54 | H37: 0.03246561002
A38: Other | C38: 0 | D38: 0 | E38: 0 | F38: 0 | G38: =SUM(C38:F38) -> 0 | H38: -
A39: Other | C39: 0 | D39: 0 | E39: 0 | F39: 0 | G39: 0 | H39: -
A40: Other | C40: 0 | D40: 0 | E40: 0 | F40: 0 | G40: 0 | H40: -
A42: Raw Material Usage | B42: Unit | C42: Q1 | D42: Q2 | E42: Q3 | F42: Q4 | G42: Year Total | H42: Qty./te
A43: Mains Water | B43: m3 | C43: 10370 | D43: 7602 | E43: 7064 | F43: 6974 | G43: =SUM(C43:F43) -> 32010 | H43: =IF(G43>0,G43/$G$24,"-") -> 0.1117020163
A44: Other Water | B44: ltrs | G44: 0 | H44: =IF(G44>0,G44/$G$24,"-") -> -
A45: Ammonia | B45: kgs | G45: 0 | H45: -
A46: Urea | B46: kgs | C46: 128327.2238 | D46: 89341.72706 | E46: 121701.7697 | F46: 129420.1053 | G46: =SUM(C46:F46) -> 468790.8259 | H46: 1.635891299
A47: Activated Carbon | B47: kgs | C47: 24403.04145 | D47: 19886.33847 | E47: 39972.84211 | F47: 37970 | G47: 122232.222 | H47: 0.4265412576
A48: Lime / hydrated lime | B48: kgs | C48: 811404.0222 | D48: 427233.1705 | E48: 635403.1368 | F48: 568692.7261 | G48: 2442733.056 | H48: 8.524155188
A49: Fuel oil | B49: ltrs | C49: 29275 | D49: 115406 | E49: 198 | F49: 25779 | G49: 170658 | H49: 0.5955277318
A50: Gas | B50: m3 | G50: 0 | H50: -
A51: Other | G51: 0 | H51: -
A53: Summary | B53: Line/Unit | C53: Q1 | D53: Q2 | E53: Q3 | F53: Q4 | G53: Year Total | I53: Hrs in year
A54: Availability of waste combustion by line, hrs **** | B54: 1 | C54: 2094.302 | D54: 1371.584 | E54: 2208 | F54: 2207.98 | G54: =SUM(C54:F54) -> 7881.866 | H54: =+G54/$I$54 -> 0.8997563927 | I54: 8760 | J54: Change this figure to 8784 in a leap year
B55: 2 | C55: 2120.823 | D55: 1544.145 | E55: 2208 | F55: 2180.167 | G55: 8053.135 | H55: =+G55/$I$54 -> 0.9193076484
B56: 3 | G56: 0 | H56: 0
B57: 4 | G57: 0 | H57: 0
B58: 5 | G58: =SUM(C58:F58) -> 0 | H58: 0
A59: Hours of turbine operations, hrs | B59: 1 | C59: 2159.567 | D59: 1925.617 | E59: 2208 | F59: 2208 | G59: 8501.184 | H59: 0.9704547945
A60: Hours of turbine operations, hrs | B60: 2 | G60: 0 | H60: 0
A61: Hours of heat / steam export** | B61: hours | G61: 0 | H61: =IF(B61>0,G60/I54,"n/a") -> 0
A62: Net calorific value of waste***** | B62: MJ/kg | C62: =9567.92614327673/1000 -> 9.567926143 | D62: =9453.44291955739/1000 -> 9.45344292 | E62: =9339.60794784946/1000 -> 9.339607948 | F62: =9207.07522216043/1000 -> 9.207075222 | G62: =AVERAGE(C62:F62) -> 9.392013058
A63: Abnormal operation events | B63: qty. | C63: 0 | D63: 0 | E63: 0 | F63: 0 | G63: 0 | H63: =IF(G63>0,"yes","no") -> no
A64: Abnormal operation duration | B64: hours | C64: 0 | D64: 0 | E64: 0 | F64: 0 | G64: 0 | H64: =+(G64)/I54 -> 0
A65: Permit Breaches | B65: qty. | D65: 1 | G65: 1 | H65: =IF(G65>0,"yes","no") -> yes

Sheet Operational Summary
A1: =+'Cover Page'!$B$29 -> Annual Performance Report 2025 | E1: =+'Cover Page'!$B$33 -> Suffolk EfW
A3: Summary of Plant Operations and Maintenance during the reporting year | K3: Notes:
A5: Operation during 2025 was improved (c.f. 2024) in terms of unplanned shutdowns but the planned outage was extended to complete additional planned works which resulted in a similar availability for the year. Online explosive cleaning was undertaken as a trial to maintain boiler efficiency and reduce reagent demands and was deemed reasonably successful. The major outage involved extensive boiler replacements and upgrades. 4m of waterwall tube in pass 1 was replaced and reinstated with Inconel overlay, as opposed to refractory tiles, for corrosion protection. Economiser 8 was replaced and the lower 'final economiser' bank was also replaced. The grate bar surface was replaced in its entirety with an updated design to be more resistant to damage from canister explosions. | K5: Include summary of key operational and/or maintenance activity undertaken in the year, such as any major component upgrades and/or replacements
A29: =+'Cover Page'!C39 -> 2025 | B29: Plant shut-downs
A30: Start date | B30: End date | C30: Reason for shut-down | K30: Provide a very brief reason for plant shut-down e.g. "Shut-down prior to major outage"; "Emergency shut-down due to boiler tube leak". All emergency shut-downs must be listed (irrespective of whether or not they were required to be reported to the EA). There is no need to include periods of hot-standby here (e.g. to clear feed chute hopper blockages). For clinical waste incinerators which require regular shut-downs for boiler cleaning, there is no need to record these here (only those prior to major outages, and emergency shut-downs).
A31: 2025-01-10 | B31: 2025-01-12 | C31: Controlled Shutdown to replace grate bars damaged by explosion
A32: 2025-03-24 | B32: 2025-03-27 | C32: Controlled Shutdown to repair boiler tube leak
A33: 2025-04-18 | B33: 2025-04-20 | C33: Controlled Shutdown to repair boiler tube leak
A34: 2025-04-21 | B34: 2025-05-22 | C34: Controlled shutdown for L1 major outage
A35: 2025-05-13 | B35: 2025-06-09 | C35: Controlled shutdown for L2 major outage
A36: 2025-05-28 | B36: 2025-05-29 | C36: Controlled shutdown to clear fly ash handling blockage
A37: 2025-11-01 | B37: 2025-11-01 | C37: Controlled shutdown to clear fly ash handling blockage

Sheet Perf. Form 1
A1: =+'Cover Page'!C39 -> 2025 | B1: Annual Reporting Performance Form 1
A3: =+'Cover Page'!B31 -> Permit EPR/WP3438HZ | F3: Operator: | G3: =+'Cover Page'!B37 -> SUEZ Recycling and Recovery Suffolk Ltd
A4: Facility: | B4: =+'Cover Page'!B33:I33 -> Suffolk EfW | F4: Form: | G4: Performance 1
A6: Reporting Period from: | D6: 2025-01-01 | F6: to: | G6: 2025-12-31
A8: =+A1 -> 2025 | B8: Annual Reporting of Waste Disposal and Recovery
A9: Waste Description | C9: Disposal Route(s) | E9: Disposal Tonnes | G9: Recovery Tonnes | I9: % / tonne of waste incinerated
A10: 1) Hazardous Wastes
A11: APC Residues | C11: D5 | E11: ='Operational Data'!G35 -> 6540.08 | I11: =IF((E11+G11)>0,(E11+G11)/'Operational Data'!$G$24, "-") -> 0.02282224688
A12: IBA | I12: =IF((E12+G12)>0,(E12+G12)/'Operational Data'!$G$24, "-") -> -
I13: =IF((E13+G13)>0,(E13+G13)/'Operational Data'!$G$24, "-") -> -
I14: =IF((E14+G14)>0,(E14+G14)/'Operational Data'!$G$24, "-") -> -
A15: Total Hazardous Waste | E15: =SUM(E11:F14) -> 6540.08 | G15: =SUM(G11:H14) -> 0 | I15: =IF((E15+G15)>0,(E15+G15)/'Operational Data'!$G$24, "-") -> 0.02282224688
A17: 2) Non-Hazardous Wastes
A18: IBA | C18: R10 | G18: ='Operational Data'!G36 -> 48104.22 | I18: =IF((E18+G18)>0,(E18+G18)/'Operational Data'!$G$24, "-") -> 0.1678643663
A19: Ferrous Metal | C19: R04 | G19: 6089.32 | I19: =IF((E19+G19)>0,(E19+G19)/'Operational Data'!$G$24, "-") -> 0.02124927591
A20: Process Water | C20: D09 | E20: 909.3 | I20: =IF((E20+G20)>0,(E20+G20)/'Operational Data'!$G$24, "-") -> 0.003173091016
A21: Non-ferrous | C21: R04 | G21: 3214 | I21: =IF((E21+G21)>0,(E21+G21)/'Operational Data'!$G$24, "-") -> 0.0112155664
I22: =IF((E22+G22)>0,(E22+G22)/'Operational Data'!$G$24, "-") -> -
A23: Total Non-Hazardous Waste | E23: =SUM(E18:F22) -> 909.3 | G23: =SUM(G18:H22) -> 57407.54 | I23: =IF((E23+G23)>0,(E23+G23)/'Operational Data'!$G$24, "-") -> 0.2035022996
A24: TOTAL WASTE | E24: =+E23+E15 -> 7449.38 | G24: =+G23+G15 -> 57407.54 | I24: =IF((E24+G24)>0,(E24+G24)/'Operational Data'!$G$24, "-") -> 0.2263245465
A26: Operator’s comments :
A31: =+A1 -> 2025 | B31: Annual Reporting of Water and Other Raw Material Usage
A32: Raw Material | E32: Usage | G32: Unit | H32: Specific Usage | J32: Unit
A33: Mains Water | E33: =+'Operational Data'!G43 -> 32010 | G33: m3 | H33: =IF(E33>0,E33/'Operational Data'!$G$24,"-") -> 0.1117020163 | J33: m3/te
A34: Total Water | E34: =+'Operational Data'!G44+'Operational Data'!G43 -> 32010 | G34: m3 | H34: =IF(E34>0,E34/'Operational Data'!$G$24,"-") -> 0.1117020163 | J34: m3/te
A35: Urea / Ammonia | E35: =+'Operational Data'!G46 -> 468790.8259 | G35: kg | H35: =IF(E35>0,E35/'Operational Data'!$G$24,"-") -> 1.635891299 | J35: kg/te
A36: Activated Carbon | E36: =+'Operational Data'!G47 -> 122232.222 | G36: kg | H36: =IF(E36>0,E36/'Operational Data'!$G$24,"-") -> 0.4265412576 | J36: kg/te
A37: Lime / hydrated lime / Sodium Bicarb. | E37: =+'Operational Data'!G48 -> 2442733.056 | G37: kg | H37: =IF(E37>0,E37/'Operational Data'!$G$24,"-") -> 8.524155188 | J37: kg/te
A39: Operator’s comments :
A43: =+A31 -> 2025 | B43: Annual Reporting of other performance indicators
A44: Parameter | C44: Results by Line
C45: A1 | D45: A2 | E45: A3 | F45: A4 | G45: A5 | I45: Turbine 1 | J45: Turbine 2
A46: Operating hours for the year, hours | C46: 7881.866 | D46: 8053.135 | I46: ='Operational Data'!G59 -> 8501.184
A47: Number of periods of abnormal operation, qty. | C47: 0 | D47: 0
A48: Cumulative hours of abnormal operation for this year, hours | C48: 0 | D48: 0
A50: Operator’s comments :
A54: Signed: | B54: Richard Watkins | G54: Date: | H54: 2026-01-26

Sheet Energy Form 1
A1: =+'Cover Page'!C39 -> 2025 | B1: Annual Reporting of Energy Usage/Export
A3: =+'Cover Page'!B31 -> Permit EPR/WP3438HZ | F3: Operator: | G3: =+'Cover Page'!B37 -> SUEZ Recycling and Recovery Suffolk Ltd
A5: Facility: | B5: =+'Cover Page'!B33:I33 -> Suffolk EfW | F5: Form: | G5: Energy 1
A7: Reporting Period from: | D7: =+'Perf. Form 1'!D6:E6 -> 2025-01-01 | F7: to: | G7: =+'Perf. Form 1'!G6:H6 -> 2025-12-31
A9: Energy Source | D9: Energy Usage | F9: Unit | G9: Specific Usage (KWh/tonne incinerated
A10: Electricity Produced | D10: =+'Operational Data'!G27 -> 209924.4865 | F10: MWh | G10: =+'Operational Data'!H27 -> 732.5519655
A11: Electricity Imported | D11: =+'Operational Data'!G29 -> 191.659 | F11: MWh | G11: =+'Operational Data'!H29 -> 0.6688127691
A12: Electricity Exported | D12: =+'Operational Data'!G28 -> 186332.0238 | F12: MWh | G12: =+'Operational Data'!H28 -> 650.2237663
A13: Gas Oil | D13: ='Operational Data'!G49*0.85/1000 -> 145.0593 | F13: tonnes | G13: =(D13*42800*1000*(1/3600))/'Operational Data'!G24 -> 6.018138579
A14: Steam/hot water exported | D14: =+'Operational Data'!G31 -> 0 | F14: GWh | G14: =+'Operational Data'!H31 -> -
A18: Operator’s comments :
A19: Density value of 850 kg.m-3 used to convert gas oil litres to tonnes. Net Calorific Value (NCV) of 42,800 kJ.kg-1 used for gas oil
A29: Signed: | B29: Richard Watkins | G29: Date: | H29: 2026-01-26

Sheet Permit Compliance
A1: =+'Cover Page'!$B$29 -> Annual Performance Report 2025 | E1: =+'Cover Page'!$B$33 -> Suffolk EfW
A3: Summary of Permit Compliance
A5: Compliance with permit limits for continuously monitored pollutants
A7: The plant met its emission limits as shown in the table below:
A8: Substance | C8: Percentage time compliant during operationNote 1 | K8: Notes:
C9: Half-hourly limit | F9: Daily limit | K9: Note 1: Please report to 2 decimal places, i.e. xx.xx% Note 2: Please enter into this table any permit non-compliances that the EA has given a CCS score for. Please also enter any other non-compliances which you have notified to the EA (e.g. ELV exceedances) but which have not yet been assessed by the EA. There is no need to enter any notifications which were subsequently assessed by the EA not to be permit breaches. Note 3: Please enter information here (rather than just referencing the notifications that were sent to the EA) including where relevant the incineration line reference, pollutant and value of the measured result for any ELV exceedances.
A10: Particulates | C10: 1 | F10: 1
A11: Oxides of nitrogen | C11: 1 | F11: 1
A12: Sulphur dioxide | C12: 1 | F12: 1
A13: Carbon monoxide | C13: 100.00% (95% of 10-min averages) | F13: 1
A14: Total organic carbon | C14: 0.99997 | F14: 1
A15: Hydrogen chloride | C15: 1 | F15: 1
A16: Ammonia | C16: N/A | F16: 1
C17: 1 | F17: 1
A19: Summary of non-compliances under the permit Note 2
A20: Date | B20: Summary of non-compliance Note 3 | D20: Reason | G20: Measures taken to prevent reoccurrence | H20: CCS score if applicable*
H21: Impact | I21: Root cause
A22: 2025-01-01 | B22: S1 water discharge to sewer above daily consent limit. Discharge volume of 24.9m3/day against limit of 24m3/day | D22: Siltation of settlement tank and loss of tank capacity | G22: Tank cleaned at the end of January 2025
A23: 2025-04-16 | B23: Line 2 half-hourly TOC ELV breach | D23: ID fan tripped and could not be restarted quickly enough to prevent the breach. | G23: Fouled impulse lines cleaned during May outage and PPM regime put in place to clean them annually.
A27: *If the Environment Agency (EA) has given a Compliance Classification Scheme (CCS) score due to a permit non-compliance it should be entered here (CCS4 = No impact; CCS3 = Minor impact; CCS2 = Significant impact; CCS1 = Major impact). If the EA has not yet assessed a non-compliance which you have notified to them, these columns should be left blank. Enter N/A if no score was given for the root cause.
A29: Summary of any complaints received and actions to taken to resolve them.
A30: Date | B30: Summary of complaint [including Line/Reference] | E30: Reason (including whether substantiated by the operator or the EA) | H30: Measures taken to prevent reoccurrence

Sheet Improvements
A1: =+'Cover Page'!$B$29 -> Annual Performance Report 2025 | E1: =+'Cover Page'!$B$33 -> Suffolk EfW
A3: Summary of Plant Improvements
A5: Summary of any efficiency improvements that have been completed within the year.
A6: As noted in the operation summary tab, a significant proportion of the refractory covered waterwalls were replaced with Inconel overlayed waterwall which should help improve the boiler efficiency. Online explosive cleaning was also trialled for the first time to maintain boiler efficiency.
A16: Summary of any permit improvement conditions that have been completed within the year and the resulting environmental benefits.
A17: March 25 - amended Dust Management Plan provided, in response to EA comments, for permit improvement condition IC4.
A27: Summary of any changes to the plant or operating techniques which required a variation to the permit and a summary of the resulting environmental impact.
A28: Not applicable
A38: Summary of any other improvements made to the plant or planned to be made and a summary of the resulting environmental benefits.
A39: Not applicable

Sheet Public Liasion
A1: =+'Cover Page'!$B$29 -> Annual Performance Report 2025 | E1: =+'Cover Page'!$B$33 -> Suffolk EfW
A3: Details of Public & Stakeholder Liaison
A5: Summary of events held during the reporting year.
A6: Date | C6: Description
A7: May 2025 | C7: Suffolk Show
A9: 2025-07-01 | C9: Site’s 10th anniversary celebrations and official opening of refurbished visitor centre
A11: 2025-09-01 | C11: Heritage Open Days – we hosted two tours on Saturday 13 September 2025, which were attended by 32 visitors.
A13: Throughout the year | C13: Tours: - 42 adult tours/open day tours and 35 school/community group tours totalling 1,348 visitors.
A15: Throughout the year | C15: Outreach projects: - 18 events involving 1,266 people. (10 children's outreach events, 4 careers events, 2 environmental events for mixed groups, 2 outreach talks for adults)
A18: List of events planned for next year
A19: Date | C19: Description
A20: 2026-05-01 | C20: Suffolk Show
A22: 2026-09-01 | C22: Heritage Open Days
A24: Throughout the year | C24: Adult tours and school/community group tours
A26: Throughout the year | C26: Outreach events
A28: Throughout the year | C28: Careers events
A31: If you wish to be involved in the public liaison programme, please contact jennifer.steytler@suez.com

Sheet CO2 N2O
A1: =+'Cover Page'!$B$29 -> Annual Performance Report 2025 | C1: =+'Cover Page'!$B$33 -> Suffolk EfW
A3: Carbon dioxide emissions and biogenic content of waste inputs | F3: Notes:
A5: Carbon dioxide emissions (all types of plant)
B6: Annual mass of carbon dioxide released | C6: tonnes | D6: 278686.171
B7: Annual mass of carbon dioxide released per tonne of waste burned | C7: t CO2 / t waste | D7: =D6/'Operational Data'!G24 -> 0.9725025684 | F7: Note 1: All permits require operators to continuously monitor CO2 to EN14181 and flow to BS EN 16911-2 (unless otherwise agreed in writing). Operators must therefore use the results from these instruments to calculate their annual CO2 emissions. Where an operator does not have a flow meter calibrated to BS EN 16911-2, the averaged flow measurement from that year's periodic monitoring can be used instead. If the plant does not have calibrated CO2 CEMS, a suitably justified emissions factor can be used.
B8: Annual mass of carbon dioxide released per MWh of energy exported | C8: t CO2 / MWh export | D8: =D6/'Operational Data'!G28 -> 1.495642914
B9: Description of how annual carbon dioxide mass emission has been calculated. See Note 1 | C9: Measured variables (CO2, H2O and flow) which are subject to EN14181
A10: Nitrous oxide emissions (only plants which use ammonia or urea to abate NOx emissions)
B11: Annual mass emissions of nitrous oxide | C11: tonnes N2O | D11: =(6771+5183)/2000 -> 5.977
B12: Description of how annual nitrous oxide mass emission has been calculated See Note 2 | C12: Measured variables (N2O, H2O and flow) which are subject to EN14181 | F12: Note 2: All permits require operators to continuously monitor N2O to EN14181 and flow to BS EN 16911-2, unless otherwise agreed in writing. Operators must therefore use the results from these instruments to calculate their annual N2O emissions. Where an operator does not have a flow meter calibrated to BS EN 16911-2, the averaged flow measurement from periodic monitoring can be used instead. If the plant does not have calibrated N2O CEMS, data from periodic monitoring or a suitably justified emissions factor can be used instead.
B13: Total annual carbon dioxide + nitrous oxide emissions. See Note 3. | C13: tonnes CO2e | D13: =(D11*265)+D6 -> 280270.076 | F13: Note 3: Total annual carbon dioxide and nitrous oxide emissions reported as carbon dioxide equivalent where 1 tonne nitrous oxide is equivalent to 265 tonnes carbon dioxide.
A14: Biogenic CO2 emissions (See Note 4) | F14: Note 4: Only plants combusting residual municipal waste, refuse derived fuel or solid recovered fuel need complete this section.
B15: Percentage of total carbon dioxide emissions arising from biogenic waste | C15: % | D15: 0.533
B16: No. of measurements undertaken | C16: Number | D16: 7
B17: Description of how percentage biogenic carbon dioxide emissions have been measured or calculated. See Note 5 | C17: C14 Sampling installed mid year and samples analysed monthly | F17: Note 5: The results from C14 sampling should be used if this is carried out at the plant (either via an installed sampler or from spot samples). Otherwise, as an approximation (and in lieu of any more accurate metrics which may be developed in future), the measured or estimated biogenic fraction by net calorific value (see Note 6) can be assumed to be the same as the biogenic CO2 fraction of the total CO2 emissions from the plant.
A18: Biogenic fraction of waste feedstock (See Note 4)
B19: Yearly average biogenic percentage of the waste by net calorific value (NCV) | C19: % | D19: =(0.39*D15/100)/(0.47-0.8*D15/100)*100 -> 0.4463258155
B20: Description of how biogenic percentage (by NCV) has been calculated or estimated. See Note 6 | C20: Method stated in note 6 | F20: Note 6: If C14 sampling is carried out at the plant, the methodology set out in the embedded document entitled "Renewable Energy Association Energy Content of Fuels - Description of Method" embedded below can be used to calculate the biogenic percentage by net calorific value. Otherwise, data from waste sampling or BIOMA software can be used; or if none of these are available, an estimated figure with justification or a figure assumed on the basis of up-to-date industry data can be used.
B21: Yearly average biogenic percentage of the waste by mass | C21: % | D21: 0.5347
B22: If waste sampling undertaken, no. of samples used to ascertain average biogenic percentages above | C22: Number | D22: 1
B23: Description of how biogenic percentage (by mass) has been calculated or estimated. See Note 7 | C23: Calculated from Annual Waste Sampling | F23: Note 7: Where available, data from waste sampling should be used; otherwise, an estimated figure with justification can be used, or a figure assumed on the basis of up-to-date industry data.
B25: Comments:

Sheet Residues
A1: =+'Cover Page'!$B$29 -> Annual Performance Report 2025 | E1: =+'Cover Page'!$B$33 -> Suffolk EfW
A3: Summary of Residue Handling for the reporting year
A5: IBA is the main residue by volume/weight associated with the burning of waste for energy generation. The IBA is the heavy ash produced by the combustion process that is discharged from the bottom of the furnace grate and the fine ash that passes through the moving grate to the bottom ash tank. The IBA at Suffolk represents approximately 22%1 of the annual mass of waste that is thermally treated by the incineration process. The plant therefore can produce up to 65,000 tonnes of IBA per annum. APCR is the boiler ash that is produced in the furnace that is light enough to be carried through the boiler entrained in the flue gases. As it passes through the flue gas treatment (FGT) process, lime and carbon is added as part of the treatment process to remove acidic gases, heavy metals and other hazardous products of the combustion process including dioxins and furans. This boiler ash combined with these reagents in FGT is referred to as Air Pollution Control Residue. APCR at Suffolk EfW represents up to 2.5% of the annual mass of waste that is thermally treated by the incineration process. The plant therefore can produce up to 7,400 tonnes of APCR per annum. IBA is sampled every week for laboratory analysis and this is carried out in accordance with Environment Agency waste classification guidance. The weekly samples include a partial hazard assessment, a further sample is carried out annually for full hazard assessment. This analysis and assessment is carried out to confirm the ongoing non-hazardous status of the IBA material. Additional sampling and analysis is carried out quarterly in line with permit requirements. The only emission limit value applied to the IBA is a 3% TOC limit. APCR analysis is carried out quarterly in line with permit requirements. Additional analysis of APCR was carried out during 2025 to udnertake a full hazard assessment to identify the hazard properties for this residue. The IBA is treated by the onsite IBA recycling plant, operated by Blue Phoenix, to extract ferrous and non-ferrous metal for recycling, and to produce an IBA aggregate material to replace the use of virgin aggregate in construction projects. APCR removal from site is for treatment prior to disposal. The material is currently transferred to Augean where the material is stabilised with waste sludges and cleaned to reduce lime alkalinity and produce a solid cake product. The cake product is subsequently disposed of to Augean’s Kings Cliff hazardous landfill near Peterborough. | K5: Include in here a summary of residue handling regimes and destinations
A28: Residue Quality Monitoring Requirements
A30: Summary of monitoring undertaken and compliance
A31: The samples for the quarterly IBA analysis were undertaken on 05/02/2025, 20/04/2025, 13/08/2025 and 22/10/2025
A33: There were no issues identified by the analysis and all results for TOC were below the permit limit. LOI analysis is not required as TOC analysis is provided
A38: Commentary on any specific events
A39: Date & Event | C39: Description
A52: Residue Quality Monitoring Results
A53: Parameter (unit) | C53: Limit* | D53: Normal Operation
D54: Bottom ash | F54: APC Residues
A55: Loss on Ignition (average %) | C55: <5% | D55: N/A
A56: Total Organic Carbon (average %) | C56: <3% | D56: 0.0112
A57: No. of Assessments Undertaken | C57: --- | D57: 4 | F57: 4
A58: No. of Hazardous Results | C58: --- | D58: 0
A59: * The permit will specify a limit of either 5% loss on ignition or 3% total organic carbon. If both are measured anyway, please enter the results here, even where the limit does not apply.
A61: Comments :
A62: 05/02/2025 IBA Sample - TOC = 1.22 30/04/2025 IBA Sample - TOC = 0.99 13/08/2025 IBA Sample - TOC = 0.96 22/10/2025 IBA Sample - TOC = 1.31 Average = 1.12%

Sheet Water
A1: =+'Cover Page'!$B$29 -> Annual Performance Report 2025 | E1: =+'Cover Page'!$B$33 -> Suffolk EfW
A3: Emissions to Water
A5: Summary of monitoring undertaken and compliance
A6: There are no discharges to water regulated by the permit. The discharge point S1 has a volume limit of 24m3 per day as detailed in table S3.4. Compliance with the discharge volume limit is reported to the Environment Agency on a quarterly basis in line with permit requirements.
A13: Commentary on any specific events
A14: Date & Event | C14: Description
A15: Sewer discharge volume limit breach 01/01/2025 | C15: 01/01/2025 - 24.9 m3
A22: Emissions to Water / Sewer
A23: Parameter | D23: Monitoring Frequency | F23: Limit | G23: Target | H23: Max. | I23: Average
A24: Water Volume (m3/day) to Sewer (S1) | D24: Continuous | F24: 24m3/day | G24: 0 | H24: 24.9 | I24: 4.05

Sheet Air (periodic)
A1: =+'Cover Page'!$B$29 -> Annual Performance Report 2025 | E1: =+'Cover Page'!$B$33 -> Suffolk EfW
A3: Emissions to Air (periodically monitored)
A5: Summary of monitoring undertaken, standards used and compliance | K5: Notes:
A6: Emissions monitoring campaigns (H1 & H2) are at 6 monthly intervals. The H1 monitoring was completed between the 3rd March and the 14th April. The H2 monitoring was completed between the 29th September and the 2nd October. | K6: Template may require adjustment for any bespoke monitoring requirements of permit - please also check that all default ELV values, reference periods and the stated oxygen reference value match those for your plant, and edit if necessary!
A9: Results of emissions to air that are periodically monitored - oxygen reference 11%
A10: Substance | C10: Ref. Period | D10: Emission Limit Value | F10: Average | K10: User to add additional tables as necessary, depending on whether quarterly or bi-annual reporting is required for the compliance year
F11: A1 | G11: A2 | H11: A3 | I11: A4 | J11: A5
A12: Hydrogen fluoride | C12: 1 hr | D12: 1 mg/m3 | F12: =AVERAGE(0.042, 0.037) -> 0.0395 | G12: =AVERAGE(0.037, 0.04) -> 0.0385
A13: Cd and Tl and their compounds | C13: 0.5-8hrs | D13: 0.02 mg/m3 | F13: =AVERAGE(0.0007, 0.001) -> 0.00085 | G13: =AVERAGE(0.00094, 0.001) -> 0.00097
A14: Hg and its compounds | C14: 0.5-8hrs | D14: 0.02 mg/m3 | F14: =AVERAGE(0.0012, 0.0003) -> 0.00075 | G14: =AVERAGE(0.0004, 0.00071) -> 0.000555
A15: Sb, As, Pb, Cr, Co, Cu, Mn, Ni, V and their compounds | C15: 0.5-8hrs | D15: 0.3 mg/m3 | F15: =AVERAGE(0.0093, 0.022) -> 0.01565 | G15: =AVERAGE(0.051, 0.0459) -> 0.04845
A16: Dioxins & Furans (I-TEQ) | C16: 6-8hrs | D16: 0.06 ng/m3 | F16: =AVERAGE(0.0028, 0.000073) -> 0.0014365 | G16: =AVERAGE(0.000054, 0.00031) -> 0.000182
A17: PCBs (WHO-TEQ Humans / Mammals) | C17: 6-8hrs | D17: None set ng/m3 | F17: =AVERAGE(0.000019, 0.00032) -> 0.0001695 | G17: =AVERAGE(0.000063, 0.00012) -> 9.15e-05
A18: PCBs (WHO-TEQ Fish) | C18: 6-8hrs | D18: None set ng/m3 | F18: =AVERAGE(0.000014, 0.000002) -> 8e-06 | G18: =AVERAGE(0.000004, 0.000007) -> 5.5e-06
A19: PCBs (WHO-TEQ Birds) | C19: 6-8hrs | D19: None set ng/m3 | F19: =AVERAGE(0.000265, 0.00058) -> 0.0004225 | G19: =AVERAGE(0.00058, 0.000273) -> 0.0004265
A20: Dioxins & Furans (WHO-TEQ Humans / Mammals) | C20: 6-8hrs | D20: None set ng/m3 | F20: =AVERAGE(0.0028, 0.000067) -> 0.0014335 | G20: =AVERAGE(0.00033, 0.000045) -> 0.0001875
A21: Dioxins & Furans (WHO-TEQ Fish) | C21: 6-8hrs | D21: None set ng/m3 | F21: =AVERAGE(0.000016, 0.0026) -> 0.001308 | G21: =AVERAGE(0.000005, 0.00029) -> 0.0001475
A22: Dioxins & Furans (WHO-TEQ Birds) | C22: 6-8hrs | D22: None set ng/m3 | F22: =AVERAGE(0.0039, 0.000016) -> 0.001958 | G22: =AVERAGE(0.00045, 0.000005) -> 0.0002275
A23: Anthanthrene | C23: 6-8hrs | D23: None set µg/m3 | F23: 0.0014 | G23: 0.0017
A24: Benzo(a)anthracene | C24: 6-8hrs | D24: None set µg/m3 | F24: 0.007 | G24: 0.0052
A25: Benzo(a)pyrene | C25: 6-8hrs | D25: None set µg/m3 | F25: 0.0028 | G25: 0.0027
A26: Benzo(b)fluoranthene | C26: 6-8hrs | D26: None set µg/m3 | F26: 0.0023 | G26: 0.0019
A27: Benzo(b)naptho(2,1-d) thiophene | C27: 6-8hrs | D27: None set µg/m3 | F27: 0.0014 | G27: 0.0017
A28: Benzo(c)phenanthrene | C28: 6-8hrs | D28: None set µg/m3 | F28: 0.0014 | G28: 0.0017
A29: Benzo(ghi)perylene | C29: 6-8hrs | D29: None set µg/m3 | F29: 0.0038 | G29: 0.0047
A30: Benzo(k)fluoranthene | C30: 6-8hrs | D30: None set µg/m3 | F30: 0.0014 | G30: 0.0017
A31: Cholanthrene | C31: 6-8hrs | D31: None set µg/m3 | F31: 0.0014 | G31: 0.0017
A32: Chrysene | C32: 6-8hrs | D32: None set µg/m3 | F32: 0.0066 | G32: 0.0045
A33: Cyclopenta(cd)pyrene | C33: 6-8hrs | D33: None set µg/m3 | F33: 0.0014 | G33: 0.0017
A34: Dibenzo(ai)pyrene | C34: 6-8hrs | D34: None set µg/m3 | F34: 0.0014 | G34: 0.0017
A35: Dibenzo(ah)anthracene | C35: 6-8hrs | D35: None set µg/m3 | F35: 0.0014 | G35: 0.0017
A36: Fluoranthene | C36: 6-8hrs | D36: None set µg/m3 | F36: 0.023 | G36: 0.022
A37: Indeno(123-cd) pyrene | C37: 6-8hrs | D37: None set µg/m3 | F37: 0.0014 | G37: 0.0017
A38: Naphthalene | C38: 6-8hrs | D38: None set µg/m3 | F38: 1.4 | G38: 1.4
A39: Comments :
A40: Results are exressed as the average of the two values recorded in the 6-monthly emissions monitoring campaigns. Results highlighted in bold were recorded as < lab limit of detection so have been expressed as the LOD value. PAH's are sampled only annually so the results reported in bold were reported at the Lab Limit of Detection (< removed).

Sheet Air (CEMS)
A1: =+'Cover Page'!$B$29 -> Annual Performance Report 2025 | I1: =+'Cover Page'!$B$33 -> Suffolk EfW
A3: Emissions to Air (continuously monitored)
N4: Notes:
A5: Summary of monitoring undertaken, standards used and compliance | N5: Template may require adjustment for any bespoke monitoring requirements of permit
A6: The CEMS set up comprises a multigas analyser, FID analyser and oxygen probe for extractive sampling where flue gases are drawn continuously via a heated line to the analysers in the CEMS room for each incineration line. In situ sampling i.e. where the probes are installed directly into the flue gas flow in the stack is for the dust probes only. The set up for the duty analysers is mirrored by the standby analysers. The standby analysers can be switched between incineration Lines 1 and 2 as required. Continuous monitoring is provided by the CEMS as required by the permit. The CEMS are installed in accordance with EN14181 and relevant Environment Agency guidance. | N6: Please check that all default ELV values match those for your plant and edit if necessary!
N7: Report to 1 decimal place
A11: Results of emissions to air that are continuously monitored (maximum and average values for each line) - oxygen reference 11%
A12: Substance | B12: Reference Period | C12: Emission Limit Value | D12: A1 | F12: A2 | H12: A3 | J12: A4 | L12: A5
D13: Max. | E13: Avg. | F13: Max. | G13: Avg. | H13: Max. | I13: Avg. | J13: Max. | K13: Avg. | L13: Max. | M13: Avg.
A14: Oxides of nitrogen | B14: Daily mean | C14: 180 mg/m3 | D14: =NOx!O19 -> 171.3 | E14: =NOx!N19 -> 162.3881867 | F14: =NOx!O34 -> 171.9 | G14: =NOx!N34 -> 164.6888932
B15: ½ hourly mean | C15: 400 mg/m3 | D15: =NOx!M19 -> 209.5 | E15: =NOx!L19 -> 162.4513046 | F15: =NOx!M34 -> 233.3 | G15: =NOx!L34 -> 164.6492715
A16: Particulates | B16: Daily mean | C16: 5 mg/m3 | D16: =Particulates!O19 -> 2.4 | E16: =Particulates!N19 -> 1.295115455 | F16: =Particulates!O34 -> 1.4 | G16: =Particulates!N34 -> 1.236892515
B17: ½ hourly mean | C17: 30 mg/m3 | D17: =Particulates!M19 -> 7.1 | E17: =Particulates!L19 -> 1.302190997 | F17: =Particulates!M34 -> 1.9 | G17: =Particulates!L34 -> 1.236954599
A18: Total Organic Carbon | B18: Daily mean | C18: 10 mg/m3 | D18: =TOC!O19 -> 0.4 | E18: =TOC!N19 -> 0.05781104319 | F18: =TOC!O34 -> 1 | G18: =TOC!N34 -> 0.1916201657
B19: ½ hourly mean | C19: 20 mg/m3 | D19: =TOC!M19 -> 9.7 | E19: =TOC!L19 -> 0.06540071672 | F19: =TOC!M34 -> 40.8 | G19: =TOC!L34 -> 0.1928151221
A20: Hydrogen chloride | B20: Daily mean | C20: 8 mg/m3 | D20: =HCl!O19 -> 5.9 | E20: =HCl!N19 -> 4.165196145 | F20: =HCl!O34 -> 5.899796009 | G20: =HCl!N34 -> 4.34389968
B21: ½ hourly mean | C21: 60 mg/m3 | D21: =HCl!M19 -> 23.7 | E21: =HCl!L19 -> 4.113469322 | F21: =HCl!M34 -> 19.81110191 | G21: =HCl!L34 -> 4.341112941
A22: Sulphur dioxide | B22: Daily mean | C22: 40 mg/m3 | D22: ='SO2'!O19 -> 35.9 | E22: ='SO2'!N19 -> 21.48653109 | F22: ='SO2'!O34 -> 36.10347366 | G22: ='SO2'!N34 -> 18.80012912
B23: ½ hourly mean | C23: 200 mg/m3 | D23: ='SO2'!M19 -> 111.2 | E23: ='SO2'!L19 -> 21.44144232 | F23: ='SO2'!M34 -> 117.2334671 | G23: ='SO2'!L34 -> 18.92824612
A24: Carbon monoxide | B24: Daily mean | C24: 50 mg/m3 | D24: ='CO 95% 10 min'!Q19 -> 8.994415283 | E24: ='CO 95% 10 min'!P19 -> 4.382781267 | F24: ='CO 95% 10 min'!Q34 -> 9.28807354 | G24: ='CO 95% 10 min'!P34 -> 5.41284822
B25: 95%ile 10-min avg | C25: 150 mg/m3 | D25: =MAX('CO 95% 10 min'!M7:M18) -> 140.6981659 | E25: ='CO 95% 10 min'!M19 -> 46.62083793 | F25: =MAX('CO 95% 10 min'!M22:M33) -> 81.15448761 | G25: ='CO 95% 10 min'!M34 -> 37.14237261
A26: Nitous Oxide | B26: Daily mean | C26: None | D26: ='N20'!O19 -> 15.1 | E26: ='N20'!N19 -> 4.076873899 | F26: ='N20'!O34 -> 7.289855003 | G26: ='N20'!N34 -> 2.988196111
B27: ½ hourly mean | C27: None | D27: ='N20'!M19 -> 56 | E27: ='N20'!L19 -> 4.138939131 | F27: ='N20'!M34 -> 51.77688599 | G27: ='N20'!L34 -> 3.012019715
A28: Ammonia | B28: Daily mean | C28: 15 mg/m3 | D28: ='NH3'!O19 -> 1.3 | E28: ='NH3'!N19 -> 0.5492074712 | F28: ='NH3'!O34 -> 2.149934053 | G28: ='NH3'!N34 -> 0.3396506207
A30: Comments :

Sheet HCl
A1: =+'Cover Page'!$B$29 -> Annual Performance Report 2025 | E1: =+'Cover Page'!$B$33 -> Suffolk EfW
A3: Monitoring of Hydrogen Chloride emissions | D3: Whole Installation | G3: See Notes in Cell Q3 | J3: =+A3 -> Monitoring of Hydrogen Chloride emissions | N3: Per Combustion Line | Q3: Notes:
Q4: User to add logic to complete Whole installation, Table A5:G18. From the data in Per Combustion Line, Table J6:O79, subject to No. of lines installed
A5: =+'Cover Page'!C39 -> 2025 | B5: 1/2 Hourly Reference Periods | E5: Daily Reference Periods
A6: mg/Nm3 | B6: 1/2 hourly HCl ELV | C6: Monthly mean of half-hourly averages | D6: Highest half- hourly average | E6: Daily HCl ELV | F6: Monthly mean of daily averages | G6: Highest daily average | J6: =+A5 -> 2025 | K6: mg/Nm3 | L6: Monthly mean of half-hourly averages | M6: Highest half- hourly average | N6: Monthly mean of daily averages | O6: Highest daily average
A7: Jan | B7: 60 | C7: =AVERAGE(L7,L22) -> 2.3 | D7: =MAX(M7,M22) -> 5.5 | E7: 8 | F7: =AVERAGE(N7,N22) -> 2.599654378 | G7: =MAX(O7,O22) -> 3.6 | J7: A1 | K7: Jan | L7: 2.1 | M7: 5.5 | N7: 2.706451613 | O7: 3.2
A8: Feb | B8: 60 | C8: =AVERAGE(L8,L23) -> 2.65 | D8: =MAX(M8,M23) -> 6.8 | E8: 8 | F8: =AVERAGE(N8,N23) -> 2.644642857 | G8: =MAX(O8,O23) -> 4 | K8: Feb | L8: 2.9 | M8: 6.8 | N8: 2.907142857 | O8: 4
A9: Mar | B9: 60 | C9: 3.9 | D9: 8.6 | E9: 8 | F9: 3.932795699 | G9: 5.5 | K9: Mar | L9: 3.9 | M9: 7.8 | N9: 3.933333333 | O9: 5.1 | Q9: Whole Installation table A5:G18:
A10: Apr | B10: 60 | C10: 4.85 | D10: 11.1 | E10: 8 | F10: 4.858235294 | G10: 5.8 | K10: Apr | L10: 4.6 | M10: 8.5 | N10: 4.576470588 | O10: 5.4 | Q10: Mean: for 1/2 hourly and daily periods calculate mean of values across all operational combustion lines for the month
A11: May | B11: 60 | C11: 4.9 | D11: 11.1 | E11: 8 | F11: 4.901190476 | G11: 5.7 | K11: May | L11: 4.6 | M11: 7.6 | N11: 4.685714286 | O11: 5.6
A12: Jun | B12: 60 | C12: 4.5 | D12: 23.7 | E12: 8 | F12: 4.516637931 | G12: 5.9 | K12: Jun | L12: 4.7 | M12: 23.7 | N12: 4.648275862 | O12: 5.9
A13: Jul | B13: 60 | C13: 4.9 | D13: 8.6 | E13: 8 | F13: 4.906451613 | G13: 5.3 | K13: Jul | L13: 4.8 | M13: 8.6 | N13: 4.812903226 | O13: 5.3 | Q13: Maximum: for 1/2 hourly and daily periods use the highest value across all operational combustion lines for the month
A14: Aug | B14: 60 | C14: 4.95 | D14: 11.1 | E14: 8 | F14: 4.925806452 | G14: 5.4 | K14: Aug | L14: 4.9 | M14: 11.1 | N14: 4.887096774 | O14: 5.3
A15: Sep | B15: 60 | C15: 4.85 | D15: 9.9 | E15: 8 | F15: 4.841666667 | G15: 5.5 | K15: Sep | L15: 4.8 | M15: 9.9 | N15: 4.763333333 | O15: 5.2
A16: Oct | B16: 60 | C16: 4.732221179 | D16: 11.95617199 | E16: 8 | F16: 4.732221179 | G16: 5.745677948 | K16: Oct | L16: 4.367200003 | M16: 7.300303936 | N16: 4.367200003 | O16: 5.107594013
A17: Nov | B17: 60 | C17: 4.114434068 | D17: 19.81110191 | E17: 8 | F17: 4.114434068 | G17: 5.851359844 | K17: Nov | L17: 4.16213162 | M17: 7.316547871 | N17: 4.16213162 | O17: 5.452291012
A18: Dec | B18: 60 | C18: 4.080838333 | D18: 10.11754608 | E18: 8 | F18: 4.080838333 | G18: 5.899796009 | K18: Dec | L18: 3.53230024 | M18: 7.23388195 | N18: 3.53230024 | O18: 4.829960823
K19: Annual | L19: =AVERAGE(L7:L18) -> 4.113469322 | M19: =MAX(M7:M18) -> 23.7 | N19: =AVERAGE(N7:N18) -> 4.165196145 | O19: =MAX(O7:O18) -> 5.9
J21: =+A5 -> 2025 | K21: mg/Nm3 | L21: Monthly mean of half-hourly averages | M21: Highest half- hourly average | N21: Monthly mean of daily averages | O21: Highest daily average
J22: A2 | K22: Jan | L22: 2.5 | M22: 5.5 | N22: 2.492857143 | O22: 3.6
K23: Feb | L23: 2.4 | M23: 4.4 | N23: 2.382142857 | O23: 3.2
K24: Mar | L24: 3.9 | M24: 8.6 | N24: 3.932258065 | O24: 5.5
K25: Apr | L25: 5.1 | M25: 11.1 | N25: 5.14 | O25: 5.8
K26: May | L26: 5.2 | M26: 11.1 | N26: 5.116666667 | O26: 5.7
K27: Jun | L27: 4.3 | M27: 6.4 | N27: 4.385 | O27: 5.1
K28: Jul | L28: 5 | M28: 8.4 | N28: 5 | O28: 5.1
K29: Aug | L29: 5 | M29: 9 | N29: 4.964516129 | O29: 5.4
K30: Sep | L30: 4.9 | M30: 8.5 | N30: 4.92 | O30: 5.5
K31: Oct | L31: 5.097242355 | M31: 11.95617199 | N31: 5.097242355 | O31: 5.745677948
K32: Nov | L32: 4.066736517 | M32: 19.81110191 | N32: 4.066736517 | O32: 5.851359844
K33: Dec | L33: 4.629376426 | M33: 10.11754608 | N33: 4.629376426 | O33: 5.899796009
K34: Annual | L34: =AVERAGE(L22:L33) -> 4.341112941 | M34: =MAX(M22:M33) -> 19.81110191 | N34: =AVERAGE(N22:N33) -> 4.34389968 | O34: =MAX(O22:O33) -> 5.899796009
J36: =+A5 -> 2025 | K36: mg/Nm3 | L36: Monthly mean of half-hourly averages | M36: Highest half- hourly average | N36: Monthly mean of daily averages | O36: Highest daily average
J37: A3 | K37: Jan
K38: Feb
K39: Mar
K40: Apr
K41: May
K42: Jun
K43: Jul
K44: Aug
K45: Sep
K46: Oct
K47: Nov
A48: Comments : | K48: Dec
K49: Annual | L49: =AVERAGE(L37:L48) ->  | M49: =MAX(M37:M48) -> 0 | N49: =AVERAGE(N37:N48) ->  | O49: =MAX(O37:O48) -> 0
J51: =+A5 -> 2025 | K51: mg/Nm3 | L51: Monthly mean of half-hourly averages | M51: Highest half- hourly average | N51: Monthly mean of daily averages | O51: Highest daily average
J52: A4 | K52: Jan
K53: Feb
K54: Mar
K55: Apr
K56: May
K57: Jun
K58: Jul
K59: Aug
K60: Sep
K61: Oct
K62: Nov
K63: Dec
K64: Annual | L64: =AVERAGE(L52:L63) ->  | M64: =MAX(M52:M63) -> 0 | N64: =AVERAGE(N52:N63) ->  | O64: =MAX(O52:O63) -> 0
J66: =+A5 -> 2025 | K66: mg/Nm3 | L66: Monthly mean of half-hourly averages | M66: Highest half- hourly average | N66: Monthly mean of daily averages | O66: Highest daily average
J67: A5 | K67: Jan
K68: Feb
K69: Mar
K70: Apr
K71: May
K72: Jun
K73: Jul
K74: Aug
K75: Sep
K76: Oct
K77: Nov
K78: Dec
K79: Annual | L79: =AVERAGE(L67:L78) ->  | M79: =MAX(M67:M78) -> 0 | N79: =AVERAGE(N67:N78) ->  | O79: =MAX(O67:O78) -> 0

Sheet SO2
A1: =+'Cover Page'!$B$29 -> Annual Performance Report 2025 | E1: =+'Cover Page'!$B$33 -> Suffolk EfW
A3: Monitoring of Sulphur dioxide emissions | D3: Whole Installation | G3: See Notes in Cell Q3 | J3: =+A3 -> Monitoring of Sulphur dioxide emissions | N3: Per Combustion Line | Q3: Notes:
Q4: User to add logic to complete Whole installation, Table A5:G18. From the data in Per Combustion Line, Table J6:O79, subject to No. of lines installed
A5: =+'Cover Page'!C39 -> 2025 | B5: 1/2 Hourly Reference Periods | E5: Daily Reference Periods
A6: mg/Nm3 | B6: 1/2 hourly SO2 ELV | C6: Monthly mean of half-hourly averages | D6: Highest half- hourly average | E6: Daily SO2 ELV | F6: Monthly mean of daily averages | G6: Highest daily average | J6: =+A5 -> 2025 | K6: mg/Nm3 | L6: Monthly mean of half-hourly averages | M6: Highest half- hourly average | N6: Monthly mean of daily averages | O6: Highest daily average
A7: Jan | B7: 200 | C7: =AVERAGE(L7,L22) -> 31.8 | D7: =MAX(M7,M22) -> 83.2 | E7: 40 | F7: =AVERAGE(N7,N22) -> 31.88248848 | G7: =MAX(O7,O22) -> 34.9 | J7: A1 | K7: Jan | L7: 33.2 | M7: 83.2 | N7: 33.19354839 | O7: 34.9
A8: Feb | B8: 200 | C8: =AVERAGE(L8,L23) -> 31.85 | D8: =MAX(M8,M23) -> 72.5 | E8: 40 | F8: =AVERAGE(N8,N23) -> 31.86071429 | G8: =MAX(O8,O23) -> 35.9 | K8: Feb | L8: 32.2 | M8: 72.5 | N8: 32.18214286 | O8: 35.9
A9: Mar | B9: 200 | C9: 22.3 | D9: 111.2 | E9: 40 | F9: 22.44826762 | G9: 33 | K9: Mar | L9: 23.5 | M9: 111.2 | N9: 23.84814815 | O9: 33 | Q9: Whole Installation table A5:G18:
A10: Apr | B10: 200 | C10: 20.4 | D10: 95.4 | E10: 40 | F10: 20.58647059 | G10: 31.8 | K10: Apr | L10: 23.2 | M10: 95.4 | N10: 23.55294118 | O10: 31.8 | Q10: Mean: for 1/2 hourly and daily periods calculate mean of values across all operational combustion lines for the month
A11: May | B11: 200 | C11: 14.5 | D11: 52.9 | E11: 40 | F11: 13.88142857 | G11: 34 | K11: May | L11: 8.2 | M11: 42.5 | N11: 8.342857143 | O11: 22.6
A12: Jun | B12: 200 | C12: 11.6 | D12: 67.2 | E12: 40 | F12: 11.33439655 | G12: 27.7 | K12: Jun | L12: 13.8 | M12: 67.2 | N12: 13.5137931 | O12: 27.7
A13: Jul | B13: 200 | C13: 10.2 | D13: 36.5 | E13: 40 | F13: 10.18064516 | G13: 16.4 | K13: Jul | L13: 12.6 | M13: 36.5 | N13: 12.59677419 | O13: 16.4 | Q13: Maximum: for 1/2 hourly and daily periods use the highest value across all operational combustion lines for the month
A14: Aug | B14: 200 | C14: 14.05 | D14: 51.8 | E14: 40 | F14: 14.02741935 | G14: 26.4 | K14: Aug | L14: 16 | M14: 51.8 | N14: 15.97419355 | O14: 26.4
A15: Sep | B15: 200 | C15: 15.4 | D15: 72.6 | E15: 40 | F15: 15.4 | G15: 29.4 | K15: Sep | L15: 16.9 | M15: 43.7 | N15: 16.93666667 | O15: 29.4
A16: Oct | B16: 200 | C16: 22.88670976 | D16: 74.56809998 | E16: 40 | F16: 22.88670976 | G16: 31.93476105 | K16: Oct | L16: 26.01598942 | M16: 74.56809998 | N16: 26.01598942 | O16: 31.93476105
A17: Nov | B17: 200 | C17: 20.44511894 | D17: 55.32264709 | E17: 40 | F17: 20.44511894 | G17: 31.74886513 | K17: Nov | L17: 23.51324226 | M17: 55.32264709 | N17: 23.51324226 | O17: 31.74886513
A18: Dec | B18: 200 | C18: 26.78630198 | D18: 117.2334671 | E18: 40 | F18: 26.78630198 | G18: 36.10347366 | K18: Dec | L18: 28.16807619 | M18: 77.7010498 | N18: 28.16807619 | O18: 33.06825638
K19: Annual | L19: =AVERAGE(L7:L18) -> 21.44144232 | M19: =MAX(M7:M18) -> 111.2 | N19: =AVERAGE(N7:N18) -> 21.48653109 | O19: =MAX(O7:O18) -> 35.9
J21: =+A5 -> 2025 | K21: mg/Nm3 | L21: Monthly mean of half-hourly averages | M21: Highest half- hourly average | N21: Monthly mean of daily averages | O21: Highest daily average
J22: A2 | K22: Jan | L22: 30.4 | M22: 63.2 | N22: 30.57142857 | O22: 33.1
K23: Feb | L23: 31.5 | M23: 66.5 | N23: 31.53928571 | O23: 35
K24: Mar | L24: 21.1 | M24: 69.2 | N24: 21.0483871 | O24: 30.8
K25: Apr | L25: 17.6 | M25: 49.9 | N25: 17.62 | O25: 28.4
K26: May | L26: 20.8 | M26: 52.9 | N26: 19.42 | O26: 34
K27: Jun | L27: 9.4 | M27: 41.2 | N27: 9.155 | O27: 19.4
K28: Jul | L28: 7.8 | M28: 21.8 | N28: 7.764516129 | O28: 13.4
K29: Aug | L29: 12.1 | M29: 48.9 | N29: 12.08064516 | O29: 25.2
K30: Sep | L30: 13.9 | M30: 72.6 | N30: 13.86333333 | O30: 28.2
K31: Oct | L31: 19.7574301 | M31: 67.08035278 | N31: 19.7574301 | O31: 27.80500412
K32: Nov | L32: 17.37699561 | M32: 52.70753098 | N32: 17.37699561 | O32: 29.47627068
K33: Dec | L33: 25.40452778 | M33: 117.2334671 | N33: 25.40452778 | O33: 36.10347366
K34: Annual | L34: =AVERAGE(L22:L33) -> 18.92824612 | M34: =MAX(M22:M33) -> 117.2334671 | N34: =AVERAGE(N22:N33) -> 18.80012912 | O34: =MAX(O22:O33) -> 36.10347366
J36: =+A5 -> 2025 | K36: mg/Nm3 | L36: Monthly mean of half-hourly averages | M36: Highest half- hourly average | N36: Monthly mean of daily averages | O36: Highest daily average
J37: A3 | K37: Jan
K38: Feb
K39: Mar
K40: Apr
K41: May
K42: Jun
K43: Jul
K44: Aug
K45: Sep
K46: Oct
K47: Nov
A48: Comments : | K48: Dec
K49: Annual | L49: =AVERAGE(L37:L48) ->  | M49: =MAX(M37:M48) -> 0 | N49: =AVERAGE(N37:N48) ->  | O49: =MAX(O37:O48) -> 0
J51: =+A5 -> 2025 | K51: mg/Nm3 | L51: Monthly mean of half-hourly averages | M51: Highest half- hourly average | N51: Monthly mean of daily averages | O51: Highest daily average
J52: A4 | K52: Jan
K53: Feb
K54: Mar
K55: Apr
K56: May
K57: Jun
K58: Jul
K59: Aug
K60: Sep
K61: Oct
K62: Nov
K63: Dec
K64: Annual | L64: =AVERAGE(L52:L63) ->  | M64: =MAX(M52:M63) -> 0 | N64: =AVERAGE(N52:N63) ->  | O64: =MAX(O52:O63) -> 0
J66: =+A5 -> 2025 | K66: mg/Nm3 | L66: Monthly mean of half-hourly averages | M66: Highest half- hourly average | N66: Monthly mean of daily averages | O66: Highest daily average
J67: A5 | K67: Jan
K68: Feb
K69: Mar
K70: Apr
K71: May
K72: Jun
K73: Jul
K74: Aug
K75: Sep
K76: Oct
K77: Nov
K78: Dec
K79: Annual | L79: =AVERAGE(L67:L78) ->  | M79: =MAX(M67:M78) -> 0 | N79: =AVERAGE(N67:N78) ->  | O79: =MAX(O67:O78) -> 0

Sheet NOx
A1: =+'Cover Page'!$B$29 -> Annual Performance Report 2025 | E1: =+'Cover Page'!$B$33 -> Suffolk EfW
A3: Monitoring of Oxides of Nitrogen emissions | D3: Whole Installation | G3: See Notes in Cell Q3 | J3: =+A3 -> Monitoring of Oxides of Nitrogen emissions | N3: Per Combustion Line | Q3: Notes:
Q4: User to add logic to complete Whole installation, Table A5:G18. From the data in Per Combustion Line, Table J6:O79, subject to No. of lines installed
A5: =+'Cover Page'!C39 -> 2025 | B5: 1/2 Hourly Reference Periods | E5: Daily Reference Periods
A6: mg/Nm3 | B6: 1/2 hourly NOx ELV | C6: Monthly mean of half-hourly averages | D6: Highest half- hourly average | E6: Daily NOx ELV | F6: Monthly mean of daily averages | G6: Highest daily average | J6: =+A5 -> 2025 | K6: mg/Nm3 | L6: Monthly mean of half-hourly averages | M6: Highest half- hourly average | N6: Monthly mean of daily averages | O6: Highest daily average
A7: Jan | B7: 400 | C7: =AVERAGE(L7,L22) -> 163.9 | D7: =MAX(M7,M22) -> 185.8 | E7: 180 | F7: =AVERAGE(N7,N22) -> 164.1463134 | G7: =MAX(O7,O22) -> 165.3 | J7: A1 | K7: Jan | L7: 163.6 | M7: 185.8 | N7: 163.6354839 | O7: 164.9
A8: Feb | B8: 400 | C8: =AVERAGE(L8,L23) -> 164.75 | D8: =MAX(M8,M23) -> 209.5 | E8: 180 | F8: =AVERAGE(N8,N23) -> 164.7339286 | G8: =MAX(O8,O23) -> 171.9 | K8: Feb | L8: 164.2 | M8: 209.5 | N8: 164.2285714 | O8: 171.3
A9: Mar | B9: 400 | C9: 159.8 | D9: 179.9 | E9: 180 | F9: 159.783871 | G9: 165.3 | K9: Mar | L9: 154.7 | M9: 175.5 | N9: 154.7 | O9: 161.4 | Q9: Whole Installation table A5:G18:
A10: Apr | B10: 400 | C10: 162.8 | D10: 233.3 | E10: 180 | F10: 162.8952941 | G10: 165.3 | K10: Apr | L10: 160.9 | M10: 195.1 | N10: 161.0705882 | O10: 164.2 | Q10: Mean: for 1/2 hourly and daily periods calculate mean of values across all operational combustion lines for the month
A11: May | B11: 400 | C11: 162.55 | D11: 194.9 | E11: 180 | F11: 162.0775 | G11: 165.4 | K11: May | L11: 160.5 | M11: 173.8 | N11: 159.38 | O11: 164.8
A12: Jun | B12: 400 | C12: 163.65 | D12: 201.5 | E12: 180 | F12: 163.6840517 | G12: 165.1 | K12: Jun | L12: 164.1 | M12: 201.5 | N12: 164.1931034 | O12: 164.9
A13: Jul | B13: 400 | C13: 164.35 | D13: 192.4 | E13: 180 | F13: 164.3709677 | G13: 165.2 | K13: Jul | L13: 163.9 | M13: 188.2 | N13: 163.9387097 | O13: 165 | Q13: Maximum: for 1/2 hourly and daily periods use the highest value across all operational combustion lines for the month
A14: Aug | B14: 400 | C14: 164.45 | D14: 184.6 | E14: 180 | F14: 164.4370968 | G14: 165.3 | K14: Aug | L14: 164.4 | M14: 184.6 | N14: 164.416129 | O14: 164.9
A15: Sep | B15: 400 | C15: 163.75 | D15: 211.7 | E15: 180 | F15: 163.73 | G15: 165.5 | K15: Sep | L15: 162.6 | M15: 187 | N15: 162.58 | O15: 164.5
A16: Oct | B16: 400 | C16: 164.2629725 | D16: 208.092453 | E16: 180 | F16: 164.2629725 | G16: 168.7991791 | K16: Oct | L16: 163.6973959 | M16: 190.3150177 | N16: 163.6973959 | O16: 164.8178558
A17: Nov | B17: 400 | C17: 164.1167923 | D17: 195.3597565 | E17: 180 | F17: 164.1167923 | G17: 166.341217 | K17: Nov | L17: 163.4130547 | M17: 177.904541 | N17: 163.4130547 | O17: 164.7816467
A18: Dec | B18: 400 | C18: 164.2236916 | D18: 209.8940735 | E18: 180 | F18: 164.2236916 | G18: 166.2043152 | K18: Dec | L18: 163.4052041 | M18: 189.7068634 | N18: 163.4052041 | O18: 164.7345276
K19: Annual | L19: =AVERAGE(L7:L18) -> 162.4513046 | M19: =MAX(M7:M18) -> 209.5 | N19: =AVERAGE(N7:N18) -> 162.3881867 | O19: =MAX(O7:O18) -> 171.3
J21: =+A5 -> 2025 | K21: mg/Nm3 | L21: Monthly mean of half-hourly averages | M21: Highest half- hourly average | N21: Monthly mean of daily averages | O21: Highest daily average
J22: A2 | K22: Jan | L22: 164.2 | M22: 180 | N22: 164.6571429 | O22: 165.3
K23: Feb | L23: 165.3 | M23: 205.5 | N23: 165.2392857 | O23: 171.9
K24: Mar | L24: 164.9 | M24: 179.9 | N24: 164.8677419 | O24: 165.3
K25: Apr | L25: 164.7 | M25: 233.3 | N25: 164.72 | O25: 165.3
K26: May | L26: 164.6 | M26: 194.9 | N26: 164.775 | O26: 165.4
K27: Jun | L27: 163.2 | M27: 178.5 | N27: 163.175 | O27: 165.1
K28: Jul | L28: 164.8 | M28: 192.4 | N28: 164.8032258 | O28: 165.2
K29: Aug | L29: 164.5 | M29: 179.3 | N29: 164.4580645 | O29: 165.3
K30: Sep | L30: 164.9 | M30: 211.7 | N30: 164.88 | O30: 165.5
K31: Oct | L31: 164.828549 | M31: 208.092453 | N31: 164.828549 | O31: 168.7991791
K32: Nov | L32: 164.8205298 | M32: 195.3597565 | N32: 164.8205298 | O32: 166.341217
K33: Dec | L33: 165.0421792 | M33: 209.8940735 | N33: 165.0421792 | O33: 166.2043152
K34: Annual | L34: =AVERAGE(L22:L33) -> 164.6492715 | M34: =MAX(M22:M33) -> 233.3 | N34: =AVERAGE(N22:N33) -> 164.6888932 | O34: =MAX(O22:O33) -> 171.9
J36: =+A5 -> 2025 | K36: mg/Nm3 | L36: Monthly mean of half-hourly averages | M36: Highest half- hourly average | N36: Monthly mean of daily averages | O36: Highest daily average
J37: A3 | K37: Jan
K38: Feb
K39: Mar
K40: Apr
K41: May
K42: Jun
K43: Jul
K44: Aug
K45: Sep
K46: Oct
K47: Nov
A48: Comments : | K48: Dec
K49: Annual | L49: =AVERAGE(L37:L48) ->  | M49: =MAX(M37:M48) -> 0 | N49: =AVERAGE(N37:N48) ->  | O49: =MAX(O37:O48) -> 0
J51: =+A5 -> 2025 | K51: mg/Nm3 | L51: Monthly mean of half-hourly averages | M51: Highest half- hourly average | N51: Monthly mean of daily averages | O51: Highest daily average
J52: A4 | K52: Jan
K53: Feb
K54: Mar
K55: Apr
K56: May
K57: Jun
K58: Jul
K59: Aug
K60: Sep
K61: Oct
K62: Nov
K63: Dec
K64: Annual | L64: =AVERAGE(L52:L63) ->  | M64: =MAX(M52:M63) -> 0 | N64: =AVERAGE(N52:N63) ->  | O64: =MAX(O52:O63) -> 0
J66: =+A5 -> 2025 | K66: mg/Nm3 | L66: Monthly mean of half-hourly averages | M66: Highest half- hourly average | N66: Monthly mean of daily averages | O66: Highest daily average
J67: A5 | K67: Jan
K68: Feb
K69: Mar
K70: Apr
K71: May
K72: Jun
K73: Jul
K74: Aug
K75: Sep
K76: Oct
K77: Nov
K78: Dec
K79: Annual | L79: =AVERAGE(L67:L78) ->  | M79: =MAX(M67:M78) -> 0 | N79: =AVERAGE(N67:N78) ->  | O79: =MAX(O67:O78) -> 0

Sheet TOC
A1: =+'Cover Page'!$B$29 -> Annual Performance Report 2025 | E1: =+'Cover Page'!$B$33 -> Suffolk EfW
A3: Monitoring of Total organic carbon emissions | D3: Whole Installation | G3: See Notes in Cell Q3 | J3: =+A3 -> Monitoring of Total organic carbon emissions | N3: Per Combustion Line | Q3: Notes:
Q4: User to add logic to complete Whole installation, Table A5:G18. From the data in Per Combustion Line, Table J6:O79, subject to No. of lines installed
A5: =+'Cover Page'!C39 -> 2025 | B5: 1/2 Hourly Reference Periods | E5: Daily Reference Periods
A6: mg/Nm3 | B6: 1/2 hourly TOC ELV | C6: Monthly mean of half-hourly averages | D6: Highest half- hourly average | E6: Daily TOC ELV | F6: Monthly mean of daily averages | G6: Highest daily average | J6: =+A5 -> 2025 | K6: mg/Nm3 | L6: Monthly mean of half-hourly averages | M6: Highest half- hourly average | N6: Monthly mean of daily averages | O6: Highest daily average
A7: Jan | B7: 20 | C7: =AVERAGE(L7,L22) -> 0.1 | D7: =MAX(M7,M22) -> 5.1 | E7: 10 | F7: =AVERAGE(N7,N22) -> 0.1006336406 | G7: =MAX(O7,O22) -> 0.3 | J7: A1 | K7: Jan | L7: 0.1 | M7: 5.1 | N7: 0.05483870968 | O7: 0.2
A8: Feb | B8: 20 | C8: =AVERAGE(L8,L23) -> 0.15 | D8: =MAX(M8,M23) -> 19.7 | E8: 10 | F8: =AVERAGE(N8,N23) -> 0.1267857143 | G8: =MAX(O8,O23) -> 0.7 | K8: Feb | L8: 0.1 | M8: 3.4 | N8: 0.06428571429 | O8: 0.3
A9: Mar | B9: 20 | C9: 0.1 | D9: 6.4 | E9: 10 | F9: 0.08829151732 | G9: 0.3 | K9: Mar | L9: 0 | M9: 4.3 | N9: 0.01851851852 | O9: 0.1 | Q9: Whole Installation table A5:G18:
A10: Apr | B10: 20 | C10: 0.15 | D10: 40.8 | E10: 10 | F10: 0.1485294118 | G10: 1 | K10: Apr | L10: 0.1 | M10: 9 | N10: 0.04705882353 | O10: 0.4 | Q10: Mean: for 1/2 hourly and daily periods calculate mean of values across all operational combustion lines for the month
A11: May | B11: 20 | C11: 0.35 | D11: 6.7 | E11: 10 | F11: 0.343452381 | G11: 0.6 | K11: May | L11: 0.2 | M11: 6.7 | N11: 0.2285714286 | O11: 0.3
A12: Jun | B12: 20 | C12: 0.2 | D12: 19.8 | E12: 10 | F12: 0.2137931034 | G12: 0.7 | K12: Jun | L12: 0.1 | M12: 9.7 | N12: 0.1275862069 | O12: 0.3
A13: Jul | B13: 20 | C13: 0.1 | D13: 9.2 | E13: 10 | F13: 0.08870967742 | G13: 0.4 | K13: Jul | L13: 0 | M13: 9.2 | N13: 0.01612903226 | O13: 0.2 | Q13: Maximum: for 1/2 hourly and daily periods use the highest value across all operational combustion lines for the month
A14: Aug | B14: 20 | C14: 0.15 | D14: 10.2 | E14: 10 | F14: 0.1370967742 | G14: 0.4 | K14: Aug | L14: 0.1 | M14: 9.1 | N14: 0.04193548387 | O14: 0.3
A15: Sep | B15: 20 | C15: 0.1 | D15: 14.4 | E15: 10 | F15: 0.1 | G15: 0.5 | K15: Sep | L15: 0 | M15: 2.1 | N15: 0.01 | O15: 0.1
A16: Oct | B16: 20 | C16: 0.03964664253 | D16: 6.121345043 | E16: 10 | F16: 0.03964664253 | G16: 0.1933310032 | K16: Oct | L16: 0.0179080498 | M16: 4.522600174 | N16: 0.0179080498 | O16: 0.1080500036
A17: Nov | B17: 20 | C17: 0.05305844558 | D17: 10.42844677 | E17: 10 | F17: 0.05305844558 | G17: 0.3930509984 | K17: Nov | L17: 0.02919508502 | M17: 6.191876888 | N17: 0.02919508502 | O17: 0.1437640041
A18: Dec | B18: 20 | C18: 0.05658994509 | D18: 7.884450912 | E18: 10 | F18: 0.05658994509 | G18: 0.3083789945 | K18: Dec | L18: 0.03770546587 | M18: 7.884450912 | N18: 0.03770546587 | O18: 0.3083789945
K19: Annual | L19: =AVERAGE(L7:L18) -> 0.06540071672 | M19: =MAX(M7:M18) -> 9.7 | N19: =AVERAGE(N7:N18) -> 0.05781104319 | O19: =MAX(O7:O18) -> 0.4
J21: =+A5 -> 2025 | K21: mg/Nm3 | L21: Monthly mean of half-hourly averages | M21: Highest half- hourly average | N21: Monthly mean of daily averages | O21: Highest daily average
J22: A2 | K22: Jan | L22: 0.1 | M22: 3.9 | N22: 0.1464285714 | O22: 0.3
K23: Feb | L23: 0.2 | M23: 19.7 | N23: 0.1892857143 | O23: 0.7
K24: Mar | L24: 0.2 | M24: 6.4 | N24: 0.1580645161 | O24: 0.3
K25: Apr | L25: 0.2 | M25: 40.8 | N25: 0.25 | O25: 1
K26: May | L26: 0.5 | M26: 1.2 | N26: 0.4583333333 | O26: 0.6
K27: Jun | L27: 0.3 | M27: 19.8 | N27: 0.3 | O27: 0.7
K28: Jul | L28: 0.2 | M28: 8.8 | N28: 0.1612903226 | O28: 0.4
K29: Aug | L29: 0.2 | M29: 10.2 | N29: 0.2322580645 | O29: 0.4
K30: Sep | L30: 0.2 | M30: 14.4 | N30: 0.19 | O30: 0.5
K31: Oct | L31: 0.06138523525 | M31: 6.121345043 | N31: 0.06138523525 | O31: 0.1933310032
K32: Nov | L32: 0.07692180615 | M32: 10.42844677 | N32: 0.07692180615 | O32: 0.3930509984
K33: Dec | L33: 0.0754744243 | M33: 4.711071014 | N33: 0.0754744243 | O33: 0.1682180017
K34: Annual | L34: =AVERAGE(L22:L33) -> 0.1928151221 | M34: =MAX(M22:M33) -> 40.8 | N34: =AVERAGE(N22:N33) -> 0.1916201657 | O34: =MAX(O22:O33) -> 1
J36: =+A5 -> 2025 | K36: mg/Nm3 | L36: Monthly mean of half-hourly averages | M36: Highest half- hourly average | N36: Monthly mean of daily averages | O36: Highest daily average
J37: A3 | K37: Jan
K38: Feb
K39: Mar
K40: Apr
K41: May
K42: Jun
K43: Jul
K44: Aug
K45: Sep
K46: Oct
K47: Nov
A48: Comments : | K48: Dec
K49: Annual | L49: =AVERAGE(L37:L48) ->  | M49: =MAX(M37:M48) -> 0 | N49: =AVERAGE(N37:N48) ->  | O49: =MAX(O37:O48) -> 0
J51: =+A5 -> 2025 | K51: mg/Nm3 | L51: Monthly mean of half-hourly averages | M51: Highest half- hourly average | N51: Monthly mean of daily averages | O51: Highest daily average
J52: A4 | K52: Jan
K53: Feb
K54: Mar
K55: Apr
K56: May
K57: Jun
K58: Jul
K59: Aug
K60: Sep
K61: Oct
K62: Nov
K63: Dec
K64: Annual | L64: =AVERAGE(L52:L63) ->  | M64: =MAX(M52:M63) -> 0 | N64: =AVERAGE(N52:N63) ->  | O64: =MAX(O52:O63) -> 0
J66: =+A5 -> 2025 | K66: mg/Nm3 | L66: Monthly mean of half-hourly averages | M66: Highest half- hourly average | N66: Monthly mean of daily averages | O66: Highest daily average
J67: A5 | K67: Jan
K68: Feb
K69: Mar
K70: Apr
K71: May
K72: Jun
K73: Jul
K74: Aug
K75: Sep
K76: Oct
K77: Nov
K78: Dec
K79: Annual | L79: =AVERAGE(L67:L78) ->  | M79: =MAX(M67:M78) -> 0 | N79: =AVERAGE(N67:N78) ->  | O79: =MAX(O67:O78) -> 0

Sheet Particulates
A1: =+'Cover Page'!$B$29 -> Annual Performance Report 2025 | E1: =+'Cover Page'!$B$33 -> Suffolk EfW
A3: Monitoring of Particulate matter emissions | D3: Whole Installation | G3: See Notes in Cell Q3 | J3: =+A3 -> Monitoring of Particulate matter emissions | N3: Per Combustion Line | Q3: Notes:
A5: =+'Cover Page'!C39 -> 2025 | B5: 1/2 Hourly Reference Periods | E5: Daily Reference Periods | Q5: User to add logic to complete Whole installation, Table A5:G18. From the data in Per Combustion Line, Table J6:O79, subject to No. of lines installed
A6: mg/Nm3 | B6: 1/2 hourly PM ELV | C6: Monthly mean of half-hourly averages | D6: Highest half- hourly average | E6: Daily PM ELV | F6: Monthly mean of daily averages | G6: Highest daily average | J6: =+A5 -> 2025 | K6: mg/Nm3 | L6: Monthly mean of half-hourly averages | M6: Highest half- hourly average | N6: Monthly mean of daily averages | O6: Highest daily average
A7: Jan | B7: 30 | C7: =AVERAGE(L7,L22) -> 1.15 | D7: =MAX(M7,M22) -> 1.9 | E7: 5 | F7: =AVERAGE(N7,N22) -> 1.143375576 | G7: =MAX(O7,O22) -> 1.4 | J7: A1 | K7: Jan | L7: 1 | M7: 1.3 | N7: 0.9903225806 | O7: 1.1
A8: Feb | B8: 30 | C8: =AVERAGE(L8,L23) -> 1.15 | D8: =MAX(M8,M23) -> 1.4 | E8: 5 | F8: =AVERAGE(N8,N23) -> 1.139285714 | G8: =MAX(O8,O23) -> 1.3 | K8: Feb | L8: 1 | M8: 1.4 | N8: 1.007142857 | O8: 1.2
A9: Mar | B9: 30 | C9: 1.3 | D9: 2.5 | E9: 5 | F9: 1.309020311 | G9: 1.8 | K9: Mar | L9: 1.4 | M9: 2.5 | N9: 1.414814815 | O9: 1.8
A10: Apr | B10: 30 | C10: 1.4 | D10: 2.3 | E10: 5 | F10: 1.379509804 | G10: 1.7 | K10: Apr | L10: 1.6 | M10: 2.3 | N10: 1.582352941 | O10: 1.7 | Q10: Whole Installation table A5:G18:
A11: May | B11: 30 | C11: 1.35 | D11: 7.1 | E11: 5 | F11: 1.342857143 | G11: 1.8 | K11: May | L11: 1.5 | M11: 7.1 | N11: 1.485714286 | O11: 1.8 | Q11: Mean: for 1/2 hourly and daily periods calculate mean of values across all operational combustion lines for the month
A12: Jun | B12: 30 | C12: 1.5 | D12: 2.8 | E12: 5 | F12: 1.498448276 | G12: 2.3 | K12: Jun | L12: 1.8 | M12: 2.8 | N12: 1.806896552 | O12: 2.3
A13: Jul | B13: 30 | C13: 1.35 | D13: 2.6 | E13: 5 | F13: 1.351612903 | G13: 2.4 | K13: Jul | L13: 1.5 | M13: 2.6 | N13: 1.483870968 | O13: 2.4
A14: Aug | B14: 30 | C14: 1.35 | D14: 1.8 | E14: 5 | F14: 1.358064516 | G14: 1.7 | K14: Aug | L14: 1.5 | M14: 1.8 | N14: 1.480645161 | O14: 1.7 | Q14: Maximum: for 1/2 hourly and daily periods use the highest value across all operational combustion lines for the month
A15: Sep | B15: 30 | C15: 1.3 | D15: 1.7 | E15: 5 | F15: 1.285 | G15: 1.5 | K15: Sep | L15: 1.4 | M15: 1.7 | N15: 1.363333333 | O15: 1.5
A16: Oct | B16: 30 | C16: 1.318951205 | D16: 1.71014905 | E16: 5 | F16: 1.318951205 | G16: 1.569993019 | K16: Oct | L16: 1.386834529 | M16: 1.71014905 | N16: 1.386834529 | O16: 1.569993019
A17: Nov | B17: 30 | C17: 1.18264813 | D17: 1.636652946 | E17: 5 | F17: 1.18264813 | G17: 1.406291008 | K17: Nov | L17: 1.081165035 | M17: 1.636652946 | N17: 1.081165035 | O17: 1.406291008
A18: Dec | B18: 30 | C18: 0.8832742403 | D18: 1.459262967 | E18: 5 | F18: 0.8832742403 | G18: 1.353080034 | K18: Dec | L18: 0.4582923969 | M18: 0.8493720293 | N18: 0.4582923969 | O18: 0.5968689919
K19: Annual | L19: =AVERAGE(L7:L18) -> 1.302190997 | M19: =MAX(M7:M18) -> 7.1 | N19: =AVERAGE(N7:N18) -> 1.295115455 | O19: =MAX(O7:O18) -> 2.4
J21: =+A5 -> 2025 | K21: mg/Nm3 | L21: Monthly mean of half-hourly averages | M21: Highest half- hourly average | N21: Monthly mean of daily averages | O21: Highest daily average
J22: A2 | K22: Jan | L22: 1.3 | M22: 1.9 | N22: 1.296428571 | O22: 1.4
K23: Feb | L23: 1.3 | M23: 1.4 | N23: 1.271428571 | O23: 1.3
K24: Mar | L24: 1.2 | M24: 1.4 | N24: 1.203225806 | O24: 1.3
K25: Apr | L25: 1.2 | M25: 1.7 | N25: 1.176666667 | O25: 1.2
K26: May | L26: 1.2 | M26: 1.6 | N26: 1.2 | O26: 1.2
K27: Jun | L27: 1.2 | M27: 1.6 | N27: 1.19 | O27: 1.3
K28: Jul | L28: 1.2 | M28: 1.9 | N28: 1.219354839 | O28: 1.3
K29: Aug | L29: 1.2 | M29: 1.4 | N29: 1.235483871 | O29: 1.3
K30: Sep | L30: 1.2 | M30: 1.4 | N30: 1.206666667 | O30: 1.3
K31: Oct | L31: 1.251067881 | M31: 1.709954023 | N31: 1.251067881 | O31: 1.311233044
K32: Nov | L32: 1.284131225 | M32: 1.604022026 | N32: 1.284131225 | O32: 1.337784052
K33: Dec | L33: 1.308256084 | M33: 1.459262967 | N33: 1.308256084 | O33: 1.353080034
K34: Annual | L34: =AVERAGE(L22:L33) -> 1.236954599 | M34: =MAX(M22:M33) -> 1.9 | N34: =AVERAGE(N22:N33) -> 1.236892515 | O34: =MAX(O22:O33) -> 1.4
J36: =+A5 -> 2025 | K36: mg/Nm3 | L36: Monthly mean of half-hourly averages | M36: Highest half- hourly average | N36: Monthly mean of daily averages | O36: Highest daily average
J37: A3 | K37: Jan
K38: Feb
K39: Mar
K40: Apr
K41: May
K42: Jun
K43: Jul
K44: Aug
K45: Sep
K46: Oct
K47: Nov
A48: Comments : | K48: Dec
K49: Annual | L49: =AVERAGE(L37:L48) ->  | M49: =MAX(M37:M48) -> 0 | N49: =AVERAGE(N37:N48) ->  | O49: =MAX(O37:O48) -> 0
J51: =+A5 -> 2025 | K51: mg/Nm3 | L51: Monthly mean of half-hourly averages | M51: Highest half- hourly average | N51: Monthly mean of daily averages | O51: Highest daily average
J52: A4 | K52: Jan
K53: Feb
K54: Mar
K55: Apr
K56: May
K57: Jun
K58: Jul
K59: Aug
K60: Sep
K61: Oct
K62: Nov
K63: Dec
K64: Annual | L64: =AVERAGE(L52:L63) ->  | M64: =MAX(M52:M63) -> 0 | N64: =AVERAGE(N52:N63) ->  | O64: =MAX(O52:O63) -> 0
J66: =+A5 -> 2025 | K66: mg/Nm3 | L66: Monthly mean of half-hourly averages | M66: Highest half- hourly average | N66: Monthly mean of daily averages | O66: Highest daily average
J67: A5 | K67: Jan
K68: Feb
K69: Mar
K70: Apr
K71: May
K72: Jun
K73: Jul
K74: Aug
K75: Sep
K76: Oct
K77: Nov
K78: Dec
K79: Annual | L79: =AVERAGE(L67:L78) ->  | M79: =MAX(M67:M78) -> 0 | N79: =AVERAGE(N67:N78) ->  | O79: =MAX(O67:O78) -> 0

Sheet CO 95% 10 min
A1: =+'Cover Page'!$B$29 -> Annual Performance Report 2025 | E1: =+'Cover Page'!$B$33 -> Suffolk EfW
A3: Monitoring of Carbon Monoxide (10-minute avg) | E3: Whole Installation | H3: See Notes in Cell S3 | J3: =+A3 -> Monitoring of Carbon Monoxide (10-minute avg) | O3: Per Combustion Line | Q3: Notes: | S3: Notes:
S4: User to add logic to complete Whole installation, Table A5:H18. From the data in Per Combustion Line, Table K6:Q79, subject to No. of lines installed
A5: =+'Cover Page'!C39 -> 2025 | B5: 10-minute Reference Periods | F5: Daily Reference Periods
A6: mg/Nm3 | B6: 95%ile 10-min avg CO ELV | C6: Highest daily 95%ile 10-min average | D6: Monthly mean of 10-min averages | E6: Highest 10-min average | F6: Daily CO ELV | G6: Monthly mean of daily averages | H6: Highest daily average | K6: =+A5 -> 2025 | L6: mg/Nm3 | M6: Highest daily 95%ile 10-min average | N6: Monthly mean of 10-min averages | O6: Highest 10-min average | P6: Monthly mean of daily averages | Q6: Highest daily average
A7: Jan | B7: 150 | C7: =MAX(M7,M22) -> 81.15448761 | D7: =AVERAGE(N7,N22) -> 5.559556255 | E7: =MAX(O7,O22) -> 536.9115601 | F7: 50 | G7: =AVERAGE(P7,P22) -> 5.559556255 | H7: =MAX(Q7,Q22) -> 6.312451839 | K7: A1 | L7: Jan | M7: 44.57661438 | N7: 4.633207939 | O7: 303.1193848 | P7: 4.633207939 | Q7: 4.956457138
A8: Feb | B8: =+B7 -> 150 | C8: =MAX(M8,M23) -> 66.67469788 | D8: =AVERAGE(N8,N23) -> 5.752664298 | E8: =MAX(O8,O23) -> 425.98349 | F8: =+F7 -> 50 | G8: =AVERAGE(P8,P23) -> 5.752664298 | H8: =MAX(Q8,Q23) -> 5.823738098 | L8: Feb | M8: 66.67469788 | N8: 5.532857814 | O8: 399.3400574 | P8: 5.532857814 | Q8: 5.823738098
A9: Mar | B9: =+B8 -> 150 | C9: 33.77209091 | D9: 5.018211515 | E9: 371.1298218 | F9: =+F8 -> 50 | G9: 5.018211515 | H9: 5.813554764 | L9: Mar | M9: 16.15180206 | N9: 3.928107404 | O9: 347.2325439 | P9: 3.928107404 | Q9: 3.514337063 | S9: Whole Installation table A5:H18:
A10: Apr | B10: 150 | C10: 140.6981659 | D10: 4.908173865 | E10: 538.3455811 | F10: 50 | G10: 4.908173865 | H10: 4.497774124 | L10: Apr | M10: 140.6981659 | N10: 4.637559545 | O10: 320.9201355 | P10: 4.637559545 | Q10: 3.220962048 | S10: Mean: for 10-min and daily periods use average of all operational combustion lines.
A11: May | B11: 150 | C11: 43.22879028 | D11: 4.276970438 | E11: 378.1974792 | F11: 50 | G11: 4.276970438 | H11: 8.994415283 | L11: May | M11: 43.22879028 | N11: 4.508029329 | O11: 378.1974792 | P11: 4.508029329 | Q11: 8.994415283
A12: Jun | B12: 150 | C12: 43.87690735 | D12: 4.954411261 | E12: 557.4130249 | F12: 50 | G12: 4.954411261 | H12: 5.542900085 | L12: Jun | M12: 43.87690735 | N12: 4.587058483 | O12: 355.011322 | P12: 4.587058483 | Q12: 4.11782217
A13: Jul | B13: 150 | C13: 35.93660736 | D13: 4.654738063 | E13: 393.6362305 | F13: 50 | G13: 4.654738063 | H13: 4.286839962 | L13: Jul | M13: 35.93660736 | N13: 4.301764821 | O13: 387.4013062 | P13: 4.301764821 | Q13: 3.429523945 | S13: Maximum: for 10-min and daily periods use the highest of all operational combustion lines in any month.
A14: Aug | B14: 150 | C14: 60.35272217 | D14: 4.553664663 | E14: 437.6422729 | F14: 50 | G14: 4.553664663 | H14: 4.692327023 | L14: Aug | M14: 60.35272217 | N14: 3.94284416 | O14: 402.2723999 | P14: 3.94284416 | Q14: 4.692327023
A15: Sep | B15: 150 | C15: 14.98766041 | D15: 4.03172691 | E15: 354.6084595 | F15: 50 | G15: 4.03172691 | H15: 3.731559992 | L15: Sep | M15: 14.98766041 | N15: 3.603938034 | O15: 354.6084595 | P15: 3.603938034 | Q15: 2.968564034
A16: Oct | B16: 150 | C16: 48.25987244 | D16: 4.814997606 | E16: 271.3065491 | F16: 50 | G16: 4.814997606 | H16: 9.28807354 | L16: Oct | M16: 17.848526 | N16: 3.980355089 | O16: 271.3065491 | P16: 3.980355089 | Q16: 4.007429123
A17: Nov | B17: 150 | C17: 49.47853851 | D17: 5.368750631 | E17: 815.2754517 | F17: 50 | G17: 5.368750631 | H17: 4.690462112 | L17: Nov | M17: 49.47853851 | N17: 4.530537609 | O17: 312.3584595 | P17: 4.530537609 | Q17: 3.684770107
A18: Dec | B18: 150 | C18: 36.74742508 | D18: 4.879911414 | E18: 354.3687134 | F18: 50 | G18: 4.879911414 | H18: 4.366065979 | L18: Dec | M18: 25.63902283 | N18: 4.407114975 | O18: 354.3687134 | P18: 4.407114975 | Q18: 4.350448132
L19: Annual | M19: =AVERAGE(M7:M18) -> 46.62083793 | O19: =MAX(O7:O18) -> 402.2723999 | P19: =AVERAGE(P7:P18) -> 4.382781267 | Q19: =MAX(Q7:Q18) -> 8.994415283
K21: =+A5 -> 2025 | L21: mg/Nm3 | M21: Highest daily 95%ile 10-min average | N21: Monthly mean of 10-min averages | O21: Highest 10-min average | P21: Monthly mean of daily averages | Q21: Highest daily average
K22: A2 | L22: Jan | M22: 81.15448761 | N22: 6.485904571 | O22: 536.9115601 | P22: 6.485904571 | Q22: 6.312451839
L23: Feb | M23: 33.2273941 | N23: 5.972470782 | O23: 425.98349 | P23: 5.972470782 | Q23: 4.593153
L24: Mar | M24: 33.77209091 | N24: 6.108315627 | O24: 371.1298218 | P24: 6.108315627 | Q24: 5.813554764
L25: Apr | M25: 47.95523834 | N25: 5.178788186 | O25: 538.3455811 | P25: 5.178788186 | Q25: 4.497774124
L26: May | M26: 32.96410751 | N26: 4.045911548 | O26: 212.466507 | P26: 4.045911548 | Q26: 3.654010057
L27: Jun | M27: 23.83482552 | N27: 5.321764038 | O27: 557.4130249 | P27: 5.321764038 | Q27: 5.542900085
L28: Jul | M28: 24.59307289 | N28: 5.007711306 | O28: 393.6362305 | P28: 5.007711306 | Q28: 4.286839962
L29: Aug | M29: 25.73023796 | N29: 5.164485166 | O29: 437.6422729 | P29: 5.164485166 | Q29: 4.288716793
L30: Sep | M30: 13.48061752 | N30: 4.459515787 | O30: 323.8950195 | P30: 4.459515787 | Q30: 3.731559992
L31: Oct | M31: 48.25987244 | N31: 5.649640123 | O31: 238.9079132 | P31: 5.649640123 | Q31: 9.28807354
L32: Nov | M32: 43.98910141 | N32: 6.206963653 | O32: 815.2754517 | P32: 6.206963653 | Q32: 4.690462112
L33: Dec | M33: 36.74742508 | N33: 5.352707852 | O33: 280.2922058 | P33: 5.352707852 | Q33: 4.366065979
L34: Annual | M34: =AVERAGE(M22:M33) -> 37.14237261 | O34: =MAX(O22:O33) -> 815.2754517 | P34: =AVERAGE(P22:P33) -> 5.41284822 | Q34: =MAX(Q22:Q33) -> 9.28807354
K36: =+A5 -> 2025 | L36: mg/Nm3 | M36: Highest daily 95%ile 10-min average | N36: Monthly mean of 10-min averages | O36: Highest 10-min average | P36: Monthly mean of daily averages | Q36: Highest daily average
K37: A3 | L37: Jan
L38: Feb
L39: Mar
L40: Apr
L41: May
L42: Jun
L43: Jul
L44: Aug
L45: Sep
L46: Oct
L47: Nov
A48: Comments : | L48: Dec
A49: Environment Agency explanatory note: The 10-minute average ELV is based on the “95th percentile”. In this case this means that 95% of the 10 minute averages in the relevant 24-hour period (i.e. 137) must be below 150 mg/Nm3, and 5% (i.e. 7) are allowed to be any value above 150 mg/Nm3. Whilst we expect operators to minimise CO emissions at all times, it is perfectly acceptable for the value of the maximum 10-minute average to be above 150 mg/Nm3, provided the 95th percentile ELV has been met for that period. | L49: Annual | M49: =AVERAGE(M37:M48) ->  | O49: =MAX(O37:O48) -> 0 | P49: =AVERAGE(P37:P48) ->  | Q49: =MAX(Q37:Q48) -> 0
K51: =+A5 -> 2025 | L51: mg/Nm3 | M51: Highest daily 95%ile 10-min average | N51: Monthly mean of 10-min averages | O51: Highest 10-min average | P51: Monthly mean of daily averages | Q51: Highest daily average
K52: A4 | L52: Jan
L53: Feb
L54: Mar
L55: Apr
L56: May
L57: Jun
L58: Jul
L59: Aug
L60: Sep
L61: Oct
L62: Nov
L63: Dec
L64: Annual | M64: =AVERAGE(M52:M63) ->  | O64: =MAX(O52:O63) -> 0 | P64: =AVERAGE(P52:P63) ->  | Q64: =MAX(Q52:Q63) -> 0
K66: =+A5 -> 2025 | L66: mg/Nm3 | M66: 95%ile 10-min avg maximum | N66: Monthly CO 10-min avg mean | O66: 10-min avg maximum | P66: Monthly daily mean | Q66: Monthly daily maximum
K67: A5 | L67: Jan
L68: Feb
L69: Mar
L70: Apr
L71: May
L72: Jun
L73: Jul
L74: Aug
L75: Sep
L76: Oct
L77: Nov
L78: Dec
L79: Annual | M79: =AVERAGE(M67:M78) ->  | O79: =MAX(O67:O78) -> 0 | P79: =AVERAGE(P67:P78) ->  | Q79: =MAX(Q67:Q78) -> 0

Sheet N20
A1: =+'Cover Page'!$B$29 -> Annual Performance Report 2025 | E1: =+'Cover Page'!$B$33 -> Suffolk EfW
A3: Monitoring of Nitrous Oxide emissions | D3: Whole Installation | G3: See Notes in Cell Q3 | J3: =+A3 -> Monitoring of Nitrous Oxide emissions | N3: Per Combustion Line | Q3: Notes:
Q4: User to add logic to complete Whole installation, Table A5:G18. From the data in Per Combustion Line, Table J6:O79, subject to No. of lines installed
A5: =+'Cover Page'!C39 -> 2025 | B5: 1/2 Hourly Reference Periods | E5: Daily Reference Periods
A6: mg/Nm3 | B6: 1/2 hourly N2O ELV | C6: Monthly mean of half-hourly averages | D6: Highest half- hourly average | E6: Daily N2O ELV | F6: Monthly mean of daily averages | G6: Highest daily average | J6: =+A5 -> 2025 | K6: mg/Nm3 | L6: Monthly mean of half-hourly averages | M6: Highest half- hourly average | N6: Monthly mean of daily averages | O6: Highest daily average
A7: Jan | C7: =AVERAGE(L7,L22) -> 3.7 | D7: =MAX(M7,M22) -> 47.5 | F7: =AVERAGE(N7,N22) -> 3.622638249 | G7: =MAX(O7,O22) -> 6.2 | J7: A1 | K7: Jan | L7: 3.7 | M7: 33.2 | N7: 3.677419355 | O7: 6.2
A8: Feb | C8: =AVERAGE(L8,L23) -> 3.15 | D8: =MAX(M8,M23) -> 15.7 | F8: =AVERAGE(N8,N23) -> 3.126785714 | G8: =MAX(O8,O23) -> 7.3 | K8: Feb | L8: 3.8 | M8: 15.7 | N8: 3.8 | O8: 7.3
A9: Mar | C9: 3.1 | D9: 21.8 | F9: 3.080943847 | G9: 4.7 | K9: Mar | L9: 3.9 | M9: 21.8 | N9: 3.82962963 | O9: 4.7 | Q9: Whole Installation table A5:G18:
A10: Apr | C10: 2.85 | D10: 40.3 | F10: 2.804901961 | G10: 4.2 | K10: Apr | L10: 3.5 | M10: 40.3 | N10: 3.376470588 | O10: 4.2 | Q10: Mean: for 1/2 hourly and daily periods calculate mean of values across all operational combustion lines for the month
A11: May | C11: 5 | D11: 56 | F11: 4.769642857 | G11: 15.1 | K11: May | L11: 7.5 | M11: 56 | N11: 7.114285714 | O11: 15.1
A12: Jun | C12: 3.4 | D12: 45.8 | F12: 3.280775862 | G12: 5.5 | K12: Jun | L12: 3.9 | M12: 45.8 | N12: 3.796551724 | O12: 5.3
A13: Jul | C13: 2.95 | D13: 7.9 | F13: 2.979032258 | G13: 4.1 | K13: Jul | L13: 3.3 | M13: 7.9 | N13: 3.312903226 | O13: 4.1 | Q13: Maximum: for 1/2 hourly and daily periods use the highest value across all operational combustion lines for the month
A14: Aug | C14: 3.1 | D14: 14.1 | F14: 3.101612903 | G14: 4.6 | K14: Aug | L14: 3.4 | M14: 14.1 | N14: 3.361290323 | O14: 4.6
A15: Sep | C15: 3.25 | D15: 13.3 | F15: 3.218333333 | G15: 4.7 | K15: Sep | L15: 3.6 | M15: 10.8 | N15: 3.586666667 | O15: 4.7
A16: Oct | C16: 3.834596669 | D16: 50.60499191 | F16: 3.834596669 | G16: 5.466915131 | K16: Oct | L16: 4.189326347 | M16: 17.7537899 | N16: 4.189326347 | O16: 5.466915131
A17: Nov | C17: 4.635420037 | D17: 51.77688599 | F17: 4.635420037 | G17: 7.289855003 | K17: Nov | L17: 4.705955427 | M17: 27.37320328 | N17: 4.705955427 | O17: 6.25045681
A18: Dec | C18: 3.93573637 | D18: 35.28405762 | F18: 3.93573637 | G18: 5.746583939 | K18: Dec | L18: 4.171987793 | M18: 35.28405762 | N18: 4.171987793 | O18: 5.746583939
K19: Annual | L19: =AVERAGE(L7:L18) -> 4.138939131 | M19: =MAX(M7:M18) -> 56 | N19: =AVERAGE(N7:N18) -> 4.076873899 | O19: =MAX(O7:O18) -> 15.1
J21: =+A5 -> 2025 | K21: mg/Nm3 | L21: Monthly mean of half-hourly averages | M21: Highest half- hourly average | N21: Monthly mean of daily averages | O21: Highest daily average
J22: A2 | K22: Jan | L22: 3.7 | M22: 47.5 | N22: 3.567857143 | O22: 6.2
K23: Feb | L23: 2.5 | M23: 7.6 | N23: 2.453571429 | O23: 3.1
K24: Mar | L24: 2.3 | M24: 7.7 | N24: 2.332258065 | O24: 3.6
K25: Apr | L25: 2.2 | M25: 36.8 | N25: 2.233333333 | O25: 3.2
K26: May | L26: 2.5 | M26: 28.8 | N26: 2.425 | O26: 3.3
K27: Jun | L27: 2.9 | M27: 26.5 | N27: 2.765 | O27: 5.5
K28: Jul | L28: 2.6 | M28: 5.9 | N28: 2.64516129 | O28: 3.4
K29: Aug | L29: 2.8 | M29: 10.9 | N29: 2.841935484 | O29: 3.6
K30: Sep | L30: 2.9 | M30: 13.3 | N30: 2.85 | O30: 3.6
K31: Oct | L31: 3.479866991 | M31: 50.60499191 | N31: 3.479866991 | O31: 4.368145943
K32: Nov | L32: 4.564884646 | M32: 51.77688599 | N32: 4.564884646 | O32: 7.289855003
K33: Dec | L33: 3.699484947 | M33: 16.69223022 | N33: 3.699484947 | O33: 4.640608788
K34: Annual | L34: =AVERAGE(L22:L33) -> 3.012019715 | M34: =MAX(M22:M33) -> 51.77688599 | N34: =AVERAGE(N22:N33) -> 2.988196111 | O34: =MAX(O22:O33) -> 7.289855003
J36: =+A5 -> 2025 | K36: mg/Nm3 | L36: Monthly mean of half-hourly averages | M36: Highest half- hourly average | N36: Monthly mean of daily averages | O36: Highest daily average
J37: A3 | K37: Jan
K38: Feb
K39: Mar
K40: Apr
K41: May
K42: Jun
K43: Jul
K44: Aug
K45: Sep
K46: Oct
K47: Nov
A48: Comments : | K48: Dec
K49: Annual | L49: =AVERAGE(L37:L48) ->  | M49: =MAX(M37:M48) -> 0 | N49: =AVERAGE(N37:N48) ->  | O49: =MAX(O37:O48) -> 0
J51: =+A5 -> 2025 | K51: mg/Nm3 | L51: Monthly mean of half-hourly averages | M51: Highest half- hourly average | N51: Monthly mean of daily averages | O51: Highest daily average
J52: A4 | K52: Jan
K53: Feb
K54: Mar
K55: Apr
K56: May
K57: Jun
K58: Jul
K59: Aug
K60: Sep
K61: Oct
K62: Nov
K63: Dec
K64: Annual | L64: =AVERAGE(L52:L63) ->  | M64: =MAX(M52:M63) -> 0 | N64: =AVERAGE(N52:N63) ->  | O64: =MAX(O52:O63) -> 0
J66: =+A5 -> 2025 | K66: mg/Nm3 | L66: Monthly mean of half-hourly averages | M66: Highest half- hourly average | N66: Monthly mean of daily averages | O66: Highest daily average
J67: A5 | K67: Jan
K68: Feb
K69: Mar
K70: Apr
K71: May
K72: Jun
K73: Jul
K74: Aug
K75: Sep
K76: Oct
K77: Nov
K78: Dec
K79: Annual | L79: =AVERAGE(L67:L78) ->  | M79: =MAX(M67:M78) -> 0 | N79: =AVERAGE(N67:N78) ->  | O79: =MAX(O67:O78) -> 0

Sheet NH3
A1: =+'Cover Page'!$B$29 -> Annual Performance Report 2025 | E1: =+'Cover Page'!$B$33 -> Suffolk EfW
A3: Monitoring of Ammnonia emissions | D3: Whole Installation | G3: See Notes in Cell Q3 | J3: =+A3 -> Monitoring of Ammnonia emissions | N3: Per Combustion Line | Q3: Notes:
Q4: User to add logic to complete Whole installation, Table A5:G18. From the data in Per Combustion Line, Table J6:O79, subject to No. of lines installed
A5: =+'Cover Page'!C39 -> 2025 | B5: 1/2 Hourly Reference Periods | E5: Daily Reference Periods
A6: mg/Nm3 | B6: 1/2 hourly NH3 ELV | C6: Monthly mean of half-hourly averages | D6: Highest half- hourly average | E6: Daily NH3 ELV | F6: Monthly mean of daily averages | G6: Highest daily average | J6: =+A5 -> 2025 | K6: mg/Nm3 | L6: Monthly mean of half-hourly averages | M6: Highest half- hourly average | N6: Monthly mean of daily averages | O6: Highest daily average
A7: Jan | B7: None | C7: =AVERAGE(L7,L22) -> 0.6 | D7: =MAX(M7,M22) -> 9 | E7: 15 | F7: =AVERAGE(N7,N22) -> 0.5945852535 | G7: =MAX(O7,O22) -> 1.7 | J7: A1 | K7: Jan | L7: 0.6 | M7: 4.5 | N7: 0.5677419355 | O7: 1
A8: Feb | B8: =+B7 -> None | C8: =AVERAGE(L8,L23) -> 0.5 | D8: =MAX(M8,M23) -> 5.3 | E8: 15 | F8: =AVERAGE(N8,N23) -> 0.5232142857 | G8: =MAX(O8,O23) -> 1.1 | K8: Feb | L8: 0.6 | M8: 3.2 | N8: 0.6071428571 | O8: 1.1
A9: Mar | B9: =+B8 -> None | C9: 0.3 | D9: 6.1 | E9: 15 | F9: 0.3203106332 | G9: 0.7 | K9: Mar | L9: 0.4 | M9: 6.1 | N9: 0.4148148148 | O9: 0.7 | Q9: Whole Installation table A5:G18:
A10: Apr | B10: None | C10: 0.3 | D10: 6.3 | E10: 15 | F10: 0.3130392157 | G10: 0.6 | K10: Apr | L10: 0.4 | M10: 6.3 | N10: 0.4294117647 | O10: 0.6 | Q10: Mean: for 1/2 hourly and daily periods calculate mean of values across all operational combustion lines for the month
A11: May | B11: None | C11: 0.55 | D11: 5.4 | E11: 15 | F11: 0.5113095238 | G11: 1.3 | K11: May | L11: 0.8 | M11: 5.4 | N11: 0.7142857143 | O11: 1.3
A12: Jun | B12: None | C12: 0.4 | D12: 5 | E12: 15 | F12: 0.356637931 | G12: 1 | K12: Jun | L12: 0.6 | M12: 5 | N12: 0.5482758621 | O12: 1
A13: Jul | B13: None | C13: 0.3 | D13: 1.4 | E13: 15 | F13: 0.3032258065 | G13: 0.6 | K13: Jul | L13: 0.4 | M13: 1.4 | N13: 0.3774193548 | O13: 0.5 | Q13: Maximum: for 1/2 hourly and daily periods use the highest value across all operational combustion lines for the month
A14: Aug | B14: None | C14: 0.35 | D14: 2.1 | E14: 15 | F14: 0.3580645161 | G14: 0.8 | K14: Aug | L14: 0.4 | M14: 1.7 | N14: 0.4290322581 | O14: 0.8
A15: Sep | B15: None | C15: 0.35 | D15: 1.4 | E15: 15 | F15: 0.3266666667 | G15: 0.6 | K15: Sep | L15: 0.4 | M15: 1.1 | N15: 0.3866666667 | O15: 0.6
A16: Oct | B16: None | C16: 0.4745385987 | D16: 5.220002174 | E16: 15 | F16: 0.4745385987 | G16: 1.147637963 | K16: Oct | L16: 0.6591765258 | M16: 2.839262009 | N16: 0.6591765258 | O16: 1.147637963
A17: Nov | B17: None | C17: 0.6908365492 | D17: 7.463702202 | E17: 15 | F17: 0.6908365492 | G17: 2.149934053 | K17: Nov | L17: 0.7635888533 | M17: 3.679536104 | N17: 0.7635888533 | O17: 1.255262971
A18: Dec | B18: None | C18: 0.5607195713 | D18: 3.883373022 | E18: 15 | F18: 0.5607195713 | G18: 1.272320032 | K18: Dec | L18: 0.6929330473 | M18: 3.883373022 | N18: 0.6929330473 | O18: 1.272320032
K19: Annual | L19: =AVERAGE(L7:L18) -> 0.5596415355 | M19: =MAX(M7:M18) -> 6.3 | N19: =AVERAGE(N7:N18) -> 0.5492074712 | O19: =MAX(O7:O18) -> 1.3
J21: =+A5 -> 2025 | K21: mg/Nm3 | L21: Monthly mean of half-hourly averages | M21: Highest half- hourly average | N21: Monthly mean of daily averages | O21: Highest daily average
J22: A2 | K22: Jan | L22: 0.6 | M22: 9 | N22: 0.6214285714 | O22: 1.7
K23: Feb | L23: 0.4 | M23: 5.3 | N23: 0.4392857143 | O23: 0.8
K24: Mar | L24: 0.2 | M24: 1.3 | N24: 0.2258064516 | O24: 0.6
K25: Apr | L25: 0.2 | M25: 4.4 | N25: 0.1966666667 | O25: 0.5
K26: May | L26: 0.3 | M26: 3.2 | N26: 0.3083333333 | O26: 0.9
K27: Jun | L27: 0.2 | M27: 3.6 | N27: 0.165 | O27: 0.6
K28: Jul | L28: 0.2 | M28: 1.3 | N28: 0.2290322581 | O28: 0.6
K29: Aug | L29: 0.3 | M29: 2.1 | N29: 0.2870967742 | O29: 0.8
K30: Sep | L30: 0.3 | M30: 1.4 | N30: 0.2666666667 | O30: 0.5
K31: Oct | L31: 0.2899006716 | M31: 5.220002174 | N31: 0.2899006716 | O31: 0.5577740073
K32: Nov | L32: 0.6180842452 | M32: 7.463702202 | N32: 0.6180842452 | O32: 2.149934053
K33: Dec | L33: 0.4285060953 | M33: 2.006078959 | N33: 0.4285060953 | O33: 0.8629360199
K34: Annual | L34: =AVERAGE(L22:L33) -> 0.336374251 | M34: =MAX(M22:M33) -> 9 | N34: =AVERAGE(N22:N33) -> 0.3396506207 | O34: =MAX(O22:O33) -> 2.149934053
J36: =+A5 -> 2025 | K36: mg/Nm3 | L36: Monthly mean of half-hourly averages | M36: Highest half- hourly average | N36: Monthly mean of daily averages | O36: Highest daily average
J37: A3 | K37: Jan
K38: Feb
K39: Mar
K40: Apr
K41: May
K42: Jun
K43: Jul
K44: Aug
K45: Sep
K46: Oct
K47: Nov
A48: Comments : | K48: Dec
A49: An indicated ELV value of zero in the table above means that no ammonia limit is/was set in the permit. | K49: Annual | L49: =AVERAGE(L37:L48) ->  | M49: =MAX(M37:M48) -> 0 | N49: =AVERAGE(N37:N48) ->  | O49: =MAX(O37:O48) -> 0
J51: =+A5 -> 2025 | K51: mg/Nm3 | L51: Monthly mean of half-hourly averages | M51: Highest half- hourly average | N51: Monthly mean of daily averages | O51: Highest daily average
J52: A4 | K52: Jan
K53: Feb
K54: Mar
K55: Apr
K56: May
K57: Jun
K58: Jul
K59: Aug
K60: Sep
K61: Oct
K62: Nov
K63: Dec
K64: Annual | L64: =AVERAGE(L52:L63) ->  | M64: =MAX(M52:M63) -> 0 | N64: =AVERAGE(N52:N63) ->  | O64: =MAX(O52:O63) -> 0
J66: =+A5 -> 2025 | K66: mg/Nm3 | L66: Monthly mean of half-hourly averages | M66: Highest half- hourly average | N66: Monthly mean of daily averages | O66: Highest daily average
J67: A5 | K67: Jan
K68: Feb
K69: Mar
K70: Apr
K71: May
K72: Jun
K73: Jul
K74: Aug
K75: Sep
K76: Oct
K77: Nov
K78: Dec
K79: Annual | L79: =AVERAGE(L67:L78) ->  | M79: =MAX(M67:M78) -> 0 | N79: =AVERAGE(N67:N78) ->  | O79: =MAX(O67:O78) -> 0

Sheet Template changes log
A1: Log of changes to template (Environment Agency use only)
A3: Date | B3: Description of change | C3: New version number and date
A4: 2024-01-16 | B4: Air (periodic) tab: corrected default O2 reference from 6 to 11% | C4: Version 23.5a (for incinerators) - 16/01/2024
A5: 2024-09-23 | B5: Air (periodic) tab: corrected symbol for Thallium to Tl
A6: 2024-09-23 | B6: Air (periodic) tab: removed last year's references to different emission limit values applying from 03/12/23 and updated all relevant ELVs
A7: 2024-09-23 | B7: Tabs for continuously monitored pollutants (HCl, SO2 etc.): changed terminology in table headings to improve clarity
A8: 2024-09-23 | B8: Tabs for continuously monitored pollutants (HCl, SO2 etc.): removed last year's references to different emission limit values applying from 03/12/23 and updated all relevant ELVs
A9: 2024-09-23 | B9: Perf 1 tab: updated formula for water usage to report m3 rather than litres and corrected error with formula copying operator name
A10: 2024-09-23 | B10: Operational Summary tab: table added on start-ups and shut-downs
A11: 2024-09-23 | B11: Operational Summary tab: table added on dioxins and mercury protocols
A12: 2024-09-23 | B12: Operational Summary tab: table added on AST, QAL 2 and calibration functions
A13: 2024-09-23 | B13: CO2 N2O tab: various changes made to notes to reflect the fact that most plants should now have calibrated CEMS and flow meters + some have C14 samplers and more up to date industry data | C13: Version 24a (for incinerators) - 23/09/24
A14: 2024-11-08 | B14: CO2 N2O tab: Changed the N2O CO2 equivalence factor from 298 to 265 in line with recently updated government greenhouse gas figures: https://www.gov.uk/government/publications/greenhouse-gas-reporting-conversion-factors-2024
A15: 2024-11-08 | B15: CO2 N2O tab: Added an additional requirement for municipal EfW plants to state the yearly average biogenic percentage of the waste by mass, and reference to a document which sets out a methodology for calculating NCV of waste from the results of C14 sampling.
A16: 2024-11-08 | B16: Permit Compliance tab: Two additional columns added + explanatory notes to the table entitled "Summary of non-compliances under the permit" to allow CCS scores to be stated where relevant.
A17: 2024-11-08 | B17: Residue Quality tab: Note added explaining application of TOC and LOI limits and asking operators to report both metrics where measured. | C17: Version 24.1a (for incinerators) - 08/11/24
A18: 2024-11-27 | B18: Operational Summary tab: table added on start-ups and shut-downs | C18: Version 24.2a (for incinerators) - 27/11/24
A19: 2025-11-27 | B19: Cover Page: Print as PDF and Print Report and pdf buttons deleted and blank columns removed; contents page deleted | C19: Version 25.1a (for incinerators) - 27/11/25
A20: 2025-11-27 | B20: Residue Quality tab renamed to "Residues", and Summary of residue handling table moved from Operational Summary tab to Residues tab.
A21: 2025-11-27 | B21: Various changes made to the Operational Data tab including • Reformatting of the rows under the Operational data heading (Rows 3-8) to make it clearer what information is required. • Amendment of the rows under the Energy Usage / Export heading (Rows 26-32) to calculate an “indicative parasitic load” (now excluding energy imported) • Amendment of the unit for gas usage from cubic feet to cubic metres (Row 50) • Some amendments to the first 2 notes and other minor edits • Deleted "Overall Availability, mean avg. of all lines, hrs" row
A22: 2025-11-27 | B22: Operational Summary tab: Note added requiring all emergency shut-downs be listed, irrespective of whether or not they were reportable.
A23: 2025-11-27 | B23: CO2 N2O tab: Note added to ask operators to ensure that relevant data reported here matches that which will be submitted under the Pollution Inventory
